{"text_format":"3","workbook":"xlsx","n_sheets":4,"sheets":["Heart Pressure Tracker","Readme","Calculations","PSW_Sheet"],"not_rendered":{"defined_names":114},"cells_cut":7,"read":"whole","date_system":"1900"}

{"sheet":"Heart Pressure Tracker","index":0,"n_rows":28,"n_cols":27,"rows_kept":28,"merged":[[1,3,1,26],[1,27,1,28],[2,27,2,28],[3,2,3,3],[3,5,3,13],[3,15,3,28],[4,2,4,3],[4,5,4,7],[4,8,4,10],[4,11,4,13],[4,15,4,16],[4,17,4,19],[4,20,4,22],[4,23,4,25],[4,26,4,28],[5,15,5,16],[5,17,5,19],[5,20,5,22],[5,23,5,25],[5,26,5,28],[6,2,7,2],[6,3,6,4],[6,5,6,7],[6,8,6,10],[6,11,6,13],[6,15,6,16],[6,17,6,19],[6,20,6,22],[6,23,6,25],[6,26,6,28],[7,3,7,4],[7,5,7,7],[7,8,7,10],[7,11,7,13],[7,15,7,16],[7,17,7,19],[7,20,7,22],[7,23,7,25],[7,26,7,28],[9,2,10,2],[9,3,9,4],[9,5,9,7],[9,8,9,10],[9,11,9,13],[9,15,9,16],[9,17,9,19],[9,20,9,22],[9,23,9,25],[9,26,9,28],[10,3,10,4],[10,5,10,7],[10,8,10,10],[10,11,10,13],[10,15,10,16],[10,17,10,19],[10,20,10,22],[10,23,10,25],[10,26,10,28],[12,2,13,2],[12,3,12,4],[12,5,12,7],[12,8,12,10],[12,11,12,13],[12,15,12,16],[12,17,12,19],[12,20,12,22],[12,23,12,25],[12,26,12,28],[13,3,13,4],[13,5,13,7],[13,8,13,10],[13,11,13,13],[13,15,13,16],[13,17,13,19],[13,20,13,22],[13,23,13,25],[13,26,13,28],[15,2,16,2],[15,3,15,4],[15,5,15,7],[15,8,15,10],[15,11,15,13],[15,15,15,16],[15,17,15,19],[15,20,15,22],[15,23,15,25],[15,26,15,28],[16,3,16,4],[16,5,16,7],[16,8,16,10],[16,11,16,13],[16,15,16,16],[16,17,16,19],[16,20,16,22],[16,23,16,25],[16,26,16,28],[18,2,19,2],[18,3,18,4],[18,5,18,7],[18,8,18,10],[18,11,18,13],[18,15,18,16],[18,17,18,19],[18,20,18,22],[18,23,18,25],[18,26,18,28],[19,3,19,4],[19,5,19,7],[19,8,19,10],[19,11,19,13],[19,15,19,16],[19,17,19,19],[19,20,19,22],[19,23,19,25],[19,26,19,28],[21,2,22,2],[21,3,21,4],[21,5,21,7],[21,8,21,10],[21,11,21,13],[21,15,21,16],[21,17,21,19],[21,20,21,22],[21,23,21,25],[21,26,21,28],[22,3,22,4],[22,5,22,7],[22,8,22,10],[22,11,22,13],[22,15,22,16],[22,17,22,19],[22,20,22,22],[22,23,22,25],[22,26,22,28],[24,2,25,2],[24,3,24,4],[24,5,24,7],[24,8,24,10],[24,11,24,13],[24,15,24,16],[24,17,24,19],[24,20,24,22],[24,23,24,25],[24,26,24,28],[25,3,25,4],[25,5,25,7],[25,8,25,10],[25,11,25,13],[25,15,25,16],[25,17,25,19],[25,20,25,22],[25,23,25,25],[25,26,25,28],[27,2,28,4],[27,5,28,7],[27,8,28,10],[27,11,28,13],[27,15,28,16],[27,17,28,19],[27,20,28,22],[27,23,28,25],[27,26,28,28]]}
[]
[{"$nulls":3},"WEEKLY BLOOD PRESSURE TRACKER"]
[]
[null,null,"Starting Date",null,null,"DAILY VALUES",{"$nulls":9},"ANALYSIS"]
[{"$nulls":5},"Systolic",null,null,"Diastolic",null,null,"Pulse",{"$nulls":3},"Pulse",null,"HypoTension",null,null,"PreHyperT.",null,null,"Stage1 HyperT.",null,null,"Stage2 HyperT."]
[]
[null,null,"Monday","Morning",null,0,null,null,0,null,null,{"$f":"IF(OR(F7*I7=0,S_11<D_11),\"\",F7-I7)","v":""},{"$nulls":3},{"$f":"IF(L7=\"\",\"\",VLOOKUP(L7,Pulse_Table,2,1))","v":""},null,{"$f":"IF(P7=\"\",\"\",IF(AND(F7<=Hypo_Sys,I7<=Hypo_Dia),\"Possible\",\"-\"))","v":""},null,null,{"$f":"IF(R7=\"\",\"\",IF(OR(AND(F7>=Pre_Sys_Lower,F7<=Pre_Sys_Upper),AND(I7>=Pre_Dia_Lower,I7<=Pre_Dia_Upper)),\"Possible\",\"-\"))","v":""},null,null,{"$f":"IF(U7=\"\",\"\",IF(OR(AND(F7>=Hyp1_Sys_Lower,F7<=Hyp1_Sys_Upper),AND(I7>=Hyp1_Dia_Lower,I7<=Hyp1_Dia_Upper)),\"Possible\",\"-\"))","v":""},null,null,{"$f":"IF(X7=\"\",\"\",IF(OR(F7>=Hyp2_Sys_Lower,I7>=Hyp2_Dia_Lower),\"Possible\",\"-\"))","v":""}]
[{"$nulls":3},"Evening",null,0,null,null,0,null,null,{"$f":"IF(OR(F8*I8=0,S_12<D_12),\"\",F8-I8)","v":""},{"$nulls":3},{"$f":"IF(L8=\"\",\"\",VLOOKUP(L8,Pulse_Table,2,1))","v":""},null,{"$f":"IF(P8=\"\",\"\",IF(AND(F8<=Hypo_Sys,I8<=Hypo_Dia),\"Possible\",\"-\"))","v":""},null,null,{"$f":"IF(R8=\"\",\"\",IF(OR(AND(F8>=Pre_Sys_Lower,F8<=Pre_Sys_Upper),AND(I8>=Pre_Dia_Lower,I8<=Pre_Dia_Upper)),\"Possible\",\"-\"))","v":""},null,null,{"$f":"IF(U8=\"\",\"\",IF(OR(AND(F8>=Hyp1_Sys_Lower,F8<=Hyp1_Sys_Upper),AND(I8>=Hyp1_Dia_Lower,I8<=Hyp1_Dia_Upper)),\"Possible\",\"-\"))","v":""},null,null,{"$f":"IF(X8=\"\",\"\",IF(OR(F8>=Hyp2_Sys_Lower,I8>=Hyp2_Dia_Lower),\"Possible\",\"-\"))","v":""}]
[]
[null,null,"Tuesday","Morning",null,0,null,null,0,null,null,{"$f":"IF(OR(F10*I10=0,S_11<D_11),\"\",F10-I10)","v":""},{"$nulls":3},{"$f":"IF(L10=\"\",\"\",VLOOKUP(L10,Pulse_Table,2,1))","v":""},null,{"$f":"IF(P10=\"\",\"\",IF(AND(F10<=Hypo_Sys,I10<=Hypo_Dia),\"Possible\",\"-\"))","v":""},null,null,{"$f":"IF(R10=\"\",\"\",IF(OR(AND(F10>=Pre_Sys_Lower,F10<=Pre_Sys_Upper),AND(I10>=Pre_Dia_Lower,I10<=Pre_Dia_Upper)),\"Possible\",\"-\"))","v":""},null,null,{"$f":"IF(U10=\"\",\"\",IF(OR(AND(F10>=Hyp1_Sys_Lower,F10<=Hyp1_Sys_Upper),AND(I10>=Hyp1_Dia_Lower,I10<=Hyp1_Dia_Upper)),\"Possible\",\"-\"))","v":""},null,null,{"$f":"IF(X10=\"\",\"\",IF(OR(F10>=Hyp2_Sys_Lower,I10>=Hyp2_Dia_Lower),\"Possible\",\"-\"))","v":""}]
[{"$nulls":3},"Evening",null,0,null,null,0,null,null,{"$f":"IF(OR(F11*I11=0,S_12<D_12),\"\",F11-I11)","v":""},{"$nulls":3},{"$f":"IF(L11=\"\",\"\",VLOOKUP(L11,Pulse_Table,2,1))","v":""},null,{"$f":"IF(P11=\"\",\"\",IF(AND(F11<=Hypo_Sys,I11<=Hypo_Dia),\"Possible\",\"-\"))","v":""},null,null,{"$f":"IF(R11=\"\",\"\",IF(OR(AND(F11>=Pre_Sys_Lower,F11<=Pre_Sys_Upper),AND(I11>=Pre_Dia_Lower,I11<=Pre_Dia_Upper)),\"Possible\",\"-\"))","v":""},null,null,{"$f":"IF(U11=\"\",\"\",IF(OR(AND(F11>=Hyp1_Sys_Lower,F11<=Hyp1_Sys_Upper),AND(I11>=Hyp1_Dia_Lower,I11<=Hyp1_Dia_Upper)),\"Possible\",\"-\"))","v":""},null,null,{"$f":"IF(X11=\"\",\"\",IF(OR(F11>=Hyp2_Sys_Lower,I11>=Hyp2_Dia_Lower),\"Possible\",\"-\"))","v":""}]
[]
[null,null,"Wednesday","Morning",null,0,null,null,0,null,null,{"$f":"IF(OR(F13*I13=0,S_11<D_11),\"\",F13-I13)","v":""},{"$nulls":3},{"$f":"IF(L13=\"\",\"\",VLOOKUP(L13,Pulse_Table,2,1))","v":""},null,{"$f":"IF(P13=\"\",\"\",IF(AND(F13<=Hypo_Sys,I13<=Hypo_Dia),\"Possible\",\"-\"))","v":""},null,null,{"$f":"IF(R13=\"\",\"\",IF(OR(AND(F13>=Pre_Sys_Lower,F13<=Pre_Sys_Upper),AND(I13>=Pre_Dia_Lower,I13<=Pre_Dia_Upper)),\"Possible\",\"-\"))","v":""},null,null,{"$f":"IF(U13=\"\",\"\",IF(OR(AND(F13>=Hyp1_Sys_Lower,F13<=Hyp1_Sys_Upper),AND(I13>=Hyp1_Dia_Lower,I13<=Hyp1_Dia_Upper)),\"Possible\",\"-\"))","v":""},null,null,{"$f":"IF(X13=\"\",\"\",IF(OR(F13>=Hyp2_Sys_Lower,I13>=Hyp2_Dia_Lower),\"Possible\",\"-\"))","v":""}]
[{"$nulls":3},"Evening",null,0,null,null,0,null,null,{"$f":"IF(OR(F14*I14=0,S_12<D_12),\"\",F14-I14)","v":""},{"$nulls":3},{"$f":"IF(L14=\"\",\"\",VLOOKUP(L14,Pulse_Table,2,1))","v":""},null,{"$f":"IF(P14=\"\",\"\",IF(AND(F14<=Hypo_Sys,I14<=Hypo_Dia),\"Possible\",\"-\"))","v":""},null,null,{"$f":"IF(R14=\"\",\"\",IF(OR(AND(F14>=Pre_Sys_Lower,F14<=Pre_Sys_Upper),AND(I14>=Pre_Dia_Lower,I14<=Pre_Dia_Upper)),\"Possible\",\"-\"))","v":""},null,null,{"$f":"IF(U14=\"\",\"\",IF(OR(AND(F14>=Hyp1_Sys_Lower,F14<=Hyp1_Sys_Upper),AND(I14>=Hyp1_Dia_Lower,I14<=Hyp1_Dia_Upper)),\"Possible\",\"-\"))","v":""},null,null,{"$f":"IF(X14=\"\",\"\",IF(OR(F14>=Hyp2_Sys_Lower,I14>=Hyp2_Dia_Lower),\"Possible\",\"-\"))","v":""}]
[]
[null,null,"Thursday","Morning",null,0,null,null,0,null,null,{"$f":"IF(OR(F16*I16=0,S_11<D_11),\"\",F16-I16)","v":""},{"$nulls":3},{"$f":"IF(L16=\"\",\"\",VLOOKUP(L16,Pulse_Table,2,1))","v":""},null,{"$f":"IF(P16=\"\",\"\",IF(AND(F16<=Hypo_Sys,I16<=Hypo_Dia),\"Possible\",\"-\"))","v":""},null,null,{"$f":"IF(R16=\"\",\"\",IF(OR(AND(F16>=Pre_Sys_Lower,F16<=Pre_Sys_Upper),AND(I16>=Pre_Dia_Lower,I16<=Pre_Dia_Upper)),\"Possible\",\"-\"))","v":""},null,null,{"$f":"IF(U16=\"\",\"\",IF(OR(AND(F16>=Hyp1_Sys_Lower,F16<=Hyp1_Sys_Upper),AND(I16>=Hyp1_Dia_Lower,I16<=Hyp1_Dia_Upper)),\"Possible\",\"-\"))","v":""},null,null,{"$f":"IF(X16=\"\",\"\",IF(OR(F16>=Hyp2_Sys_Lower,I16>=Hyp2_Dia_Lower),\"Possible\",\"-\"))","v":""}]
[{"$nulls":3},"Evening",null,0,null,null,0,null,null,{"$f":"IF(OR(F17*I17=0,S_12<D_12),\"\",F17-I17)","v":""},{"$nulls":3},{"$f":"IF(L17=\"\",\"\",VLOOKUP(L17,Pulse_Table,2,1))","v":""},null,{"$f":"IF(P17=\"\",\"\",IF(AND(F17<=Hypo_Sys,I17<=Hypo_Dia),\"Possible\",\"-\"))","v":""},null,null,{"$f":"IF(R17=\"\",\"\",IF(OR(AND(F17>=Pre_Sys_Lower,F17<=Pre_Sys_Upper),AND(I17>=Pre_Dia_Lower,I17<=Pre_Dia_Upper)),\"Possible\",\"-\"))","v":""},null,null,{"$f":"IF(U17=\"\",\"\",IF(OR(AND(F17>=Hyp1_Sys_Lower,F17<=Hyp1_Sys_Upper),AND(I17>=Hyp1_Dia_Lower,I17<=Hyp1_Dia_Upper)),\"Possible\",\"-\"))","v":""},null,null,{"$f":"IF(X17=\"\",\"\",IF(OR(F17>=Hyp2_Sys_Lower,I17>=Hyp2_Dia_Lower),\"Possible\",\"-\"))","v":""}]
[]
[null,null,"Friday","Morning",null,0,null,null,0,null,null,{"$f":"IF(OR(F19*I19=0,S_11<D_11),\"\",F19-I19)","v":""},{"$nulls":3},{"$f":"IF(L19=\"\",\"\",VLOOKUP(L19,Pulse_Table,2,1))","v":""},null,{"$f":"IF(P19=\"\",\"\",IF(AND(F19<=Hypo_Sys,I19<=Hypo_Dia),\"Possible\",\"-\"))","v":""},null,null,{"$f":"IF(R19=\"\",\"\",IF(OR(AND(F19>=Pre_Sys_Lower,F19<=Pre_Sys_Upper),AND(I19>=Pre_Dia_Lower,I19<=Pre_Dia_Upper)),\"Possible\",\"-\"))","v":""},null,null,{"$f":"IF(U19=\"\",\"\",IF(OR(AND(F19>=Hyp1_Sys_Lower,F19<=Hyp1_Sys_Upper),AND(I19>=Hyp1_Dia_Lower,I19<=Hyp1_Dia_Upper)),\"Possible\",\"-\"))","v":""},null,null,{"$f":"IF(X19=\"\",\"\",IF(OR(F19>=Hyp2_Sys_Lower,I19>=Hyp2_Dia_Lower),\"Possible\",\"-\"))","v":""}]
[{"$nulls":3},"Evening",null,0,null,null,0,null,null,{"$f":"IF(OR(F20*I20=0,S_12<D_12),\"\",F20-I20)","v":""},{"$nulls":3},{"$f":"IF(L20=\"\",\"\",VLOOKUP(L20,Pulse_Table,2,1))","v":""},null,{"$f":"IF(P20=\"\",\"\",IF(AND(F20<=Hypo_Sys,I20<=Hypo_Dia),\"Possible\",\"-\"))","v":""},null,null,{"$f":"IF(R20=\"\",\"\",IF(OR(AND(F20>=Pre_Sys_Lower,F20<=Pre_Sys_Upper),AND(I20>=Pre_Dia_Lower,I20<=Pre_Dia_Upper)),\"Possible\",\"-\"))","v":""},null,null,{"$f":"IF(U20=\"\",\"\",IF(OR(AND(F20>=Hyp1_Sys_Lower,F20<=Hyp1_Sys_Upper),AND(I20>=Hyp1_Dia_Lower,I20<=Hyp1_Dia_Upper)),\"Possible\",\"-\"))","v":""},null,null,{"$f":"IF(X20=\"\",\"\",IF(OR(F20>=Hyp2_Sys_Lower,I20>=Hyp2_Dia_Lower),\"Possible\",\"-\"))","v":""}]
[]
[null,null,"Saturday","Morning",null,0,null,null,0,null,null,{"$f":"IF(OR(F22*I22=0,S_11<D_11),\"\",F22-I22)","v":""},{"$nulls":3},{"$f":"IF(L22=\"\",\"\",VLOOKUP(L22,Pulse_Table,2,1))","v":""},null,{"$f":"IF(P22=\"\",\"\",IF(AND(F22<=Hypo_Sys,I22<=Hypo_Dia),\"Possible\",\"-\"))","v":""},null,null,{"$f":"IF(R22=\"\",\"\",IF(OR(AND(F22>=Pre_Sys_Lower,F22<=Pre_Sys_Upper),AND(I22>=Pre_Dia_Lower,I22<=Pre_Dia_Upper)),\"Possible\",\"-\"))","v":""},null,null,{"$f":"IF(U22=\"\",\"\",IF(OR(AND(F22>=Hyp1_Sys_Lower,F22<=Hyp1_Sys_Upper),AND(I22>=Hyp1_Dia_Lower,I22<=Hyp1_Dia_Upper)),\"Possible\",\"-\"))","v":""},null,null,{"$f":"IF(X22=\"\",\"\",IF(OR(F22>=Hyp2_Sys_Lower,I22>=Hyp2_Dia_Lower),\"Possible\",\"-\"))","v":""}]
[{"$nulls":3},"Evening",null,0,null,null,0,null,null,{"$f":"IF(OR(F23*I23=0,S_12<D_12),\"\",F23-I23)","v":""},{"$nulls":3},{"$f":"IF(L23=\"\",\"\",VLOOKUP(L23,Pulse_Table,2,1))","v":""},null,{"$f":"IF(P23=\"\",\"\",IF(AND(F23<=Hypo_Sys,I23<=Hypo_Dia),\"Possible\",\"-\"))","v":""},null,null,{"$f":"IF(R23=\"\",\"\",IF(OR(AND(F23>=Pre_Sys_Lower,F23<=Pre_Sys_Upper),AND(I23>=Pre_Dia_Lower,I23<=Pre_Dia_Upper)),\"Possible\",\"-\"))","v":""},null,null,{"$f":"IF(U23=\"\",\"\",IF(OR(AND(F23>=Hyp1_Sys_Lower,F23<=Hyp1_Sys_Upper),AND(I23>=Hyp1_Dia_Lower,I23<=Hyp1_Dia_Upper)),\"Possible\",\"-\"))","v":""},null,null,{"$f":"IF(X23=\"\",\"\",IF(OR(F23>=Hyp2_Sys_Lower,I23>=Hyp2_Dia_Lower),\"Possible\",\"-\"))","v":""}]
[]
[null,null,"Sunday","Morning",null,0,null,null,0,null,null,{"$f":"IF(OR(F25*I25=0,S_11<D_11),\"\",F25-I25)","v":""},{"$nulls":3},{"$f":"IF(L25=\"\",\"\",VLOOKUP(L25,Pulse_Table,2,1))","v":""},null,{"$f":"IF(P25=\"\",\"\",IF(AND(F25<=Hypo_Sys,I25<=Hypo_Dia),\"Possible\",\"-\"))","v":""},null,null,{"$f":"IF(R25=\"\",\"\",IF(OR(AND(F25>=Pre_Sys_Lower,F25<=Pre_Sys_Upper),AND(I25>=Pre_Dia_Lower,I25<=Pre_Dia_Upper)),\"Possible\",\"-\"))","v":""},null,null,{"$f":"IF(U25=\"\",\"\",IF(OR(AND(F25>=Hyp1_Sys_Lower,F25<=Hyp1_Sys_Upper),AND(I25>=Hyp1_Dia_Lower,I25<=Hyp1_Dia_Upper)),\"Possible\",\"-\"))","v":""},null,null,{"$f":"IF(X25=\"\",\"\",IF(OR(F25>=Hyp2_Sys_Lower,I25>=Hyp2_Dia_Lower),\"Possible\",\"-\"))","v":""}]
[{"$nulls":3},"Evening",null,0,null,null,0,null,null,{"$f":"IF(OR(F26*I26=0,S_12<D_12),\"\",F26-I26)","v":""},{"$nulls":3},{"$f":"IF(L26=\"\",\"\",VLOOKUP(L26,Pulse_Table,2,1))","v":""},null,{"$f":"IF(P26=\"\",\"\",IF(AND(F26<=Hypo_Sys,I26<=Hypo_Dia),\"Possible\",\"-\"))","v":""},null,null,{"$f":"IF(R26=\"\",\"\",IF(OR(AND(F26>=Pre_Sys_Lower,F26<=Pre_Sys_Upper),AND(I26>=Pre_Dia_Lower,I26<=Pre_Dia_Upper)),\"Possible\",\"-\"))","v":""},null,null,{"$f":"IF(U26=\"\",\"\",IF(OR(AND(F26>=Hyp1_Sys_Lower,F26<=Hyp1_Sys_Upper),AND(I26>=Hyp1_Dia_Lower,I26<=Hyp1_Dia_Upper)),\"Possible\",\"-\"))","v":""},null,null,{"$f":"IF(X26=\"\",\"\",IF(OR(F26>=Hyp2_Sys_Lower,I26>=Hyp2_Dia_Lower),\"Possible\",\"-\"))","v":""}]
[]
[null,null,{"$f":"\"Average of \"&Measure_Nb&\" Measurements\"","v":"Average of 0 Measurements"},null,null,{"$f":"Avg_Sys","v":""},null,null,{"$f":"Avg_Dia","v":""},null,null,{"$f":"Avg_Pulse","v":""},{"$nulls":3},{"$f":"IF(L28=\"\",\"\",VLOOKUP(L28,Pulse_Table,2,1))","v":""},null,{"$f":"IF(P28=\"\",\"\",IF(AND(F28<=Hypo_Sys,I28<=Hypo_Dia),\"Possible\",\"-\"))","v":""},null,null,{"$f":"IF(R28=\"\",\"\",IF(OR(AND(F28>=Pre_Sys_Lower,F28<=Pre_Sys_Upper),AND(I28>=Pre_Dia_Lower,I28<=Pre_Dia_Upper)),\"Possible\",\"-\"))","v":""},null,null,{"$f":"IF(U28=\"\",\"\",IF(OR(AND(F28>=Hyp1_Sys_Lower,F28<=Hyp1_Sys_Upper),AND(I28>=Hyp1_Dia_Lower,I28<=Hyp1_Dia_Upper)),\"Possible\",\"-\"))","v":""},null,null,{"$f":"IF(X28=\"\",\"\",IF(OR(F28>=Hyp2_Sys_Lower,I28>=Hyp2_Dia_Lower),\"Possible\",\"-\"))","v":""}]

{"sheet":"Readme","index":1,"n_rows":24,"n_cols":4,"rows_kept":24}
[]
[]
[{"$nulls":3},"Follow the steps to enable your online Heart Pressure Tracker"]
[null,null,"1)","Your Heart Pressure Tracker is ready to use. Following steps are for online use. First visit the site below:"]
[{"$nulls":3},"http://www.spreadsheetweb.com/getting_started.htm"]
[{"$nulls":3},"Ignore the downloaded software, you will only need the username and password."]
[null,null,"2)","Visit the site below and login with your new account:"]
[{"$nulls":3},"https://www4.spreadsheetweb.com/SpreadsheetWEB//"]
[null,null,"3)","Click \"Add Web Application\" to upload this file. Your online tracker will be created automatically."]
[{"$nulls":3},"You can simply use the tracker from that link or place it on your website."]
[null,null,">>","Your online Heart Pressure Tracker will look like:"]
[{"$nulls":3},"https://www4.spreadsheetweb.com/SpreadSheetWEB/Output.aspx?ApplicationId=5c6ea24d-b58b-47cb-8a1f-1308cdfa2b0c"]
[{"$nulls":3},"You need to use the same file over a week. You are provided to save the tracker. Later, you can reach the saved file "]
[{"$nulls":3},"using the \"Data\" tab and then you can add new measurements."]
[{"$nulls":3},"You may use the same file for different weeks also. The tracks will be saved with the starting date of the measurement"]
[{"$nulls":3},"period. Later you can reach any of the tracks again using the \"Data\" tab."]
[null,null,">>","In order to see more online applications created with PSW you can check the link below:"]
[{"$nulls":3},"http://www.spreadsheetweb.com/demos.htm"]
[]
[null,null,"Note:","The possible heart disorders are calculated according to reliable information. You can check them in Calculations "]
[{"$nulls":3},"sheet and update if necessary."]
[]
[]
[{"$nulls":3},"Copyright (c) 2009 Pagos, Inc., http://www.pagos.com/"]

{"sheet":"Calculations","index":2,"n_rows":29,"n_cols":28,"rows_kept":29}
[]
[null,null,"POSSIBLE DISORDERS"]
[null,null,"Pulse",{"$nulls":3},"Hypotension",{"$nulls":5},"PreHyperTension",{"$nulls":5},"Stage1 HyperTension",{"$nulls":5},"Stage2 HyperTension"]
[null,null,0,"Low",null,null,"Systolic",null,"OR","Diastolic",null,null,"Systolic",null,"OR","Diastolic",null,null,"Systolic",null,"OR","Diastolic",null,null,"Systolic",null,"OR","Diastolic"]
[null,null,25,"Normal",null,null,"<",null,null,"<",null,null,">","<",null,">","<",null,">","<",null,">","<",null,">",null,null,">"]
[null,null,60,"High",null,null,90,null,null,60,null,null,120,139,null,80,89,null,140,159,null,90,99,null,160,null,null,100]
[]
[null,null,"MEASUREMENT RESULTS"]
[{"$nulls":4},"Sys","Dia",null,null,{"$f":"SUM(C10:C29)","v":0},null,null,"Average Values"]
[null,null,{"$f":"IF('Heart Pressure Tracker'!L7=\"\",0,1)","v":0},null,{"$f":"C10*'Heart Pressure Tracker'!F7","v":0},{"$f":"C10*'Heart Pressure Tracker'!I7","v":0},{"$nulls":5},"Systolic","Diastolic","Pulse"]
[null,null,{"$f":"IF('Heart Pressure Tracker'!L8=\"\",0,1)","v":0},null,{"$f":"C11*'Heart Pressure Tracker'!F8","v":0},{"$f":"C11*'Heart Pressure Tracker'!I8","v":0},{"$nulls":4},"Total",{"$f":"SUM(E10:E29)","v":0},{"$f":"SUM(F10:F29)","v":0},{"$f":"L11-M11","v":0}]
[]
[null,null,{"$f":"IF('Heart Pressure Tracker'!L10=\"\",0,1)","v":0},null,{"$f":"C13*'Heart Pressure Tracker'!F10","v":0},{"$f":"C13*'Heart Pressure Tracker'!I10","v":0},{"$nulls":4},"Avg",{"$f":"IF(Measure_Nb=0,\"\",L11/Measure_Nb)","v":""},{"$f":"IF(Measure_Nb=0,\"\",M11/Measure_Nb)","v":""},{"$f":"IF(Measure_Nb=0,\"\",N11/Measure_Nb)","v":""}]
[null,null,{"$f":"IF('Heart Pressure Tracker'!L11=\"\",0,1)","v":0},null,{"$f":"C14*'Heart Pressure Tracker'!F11","v":0},{"$f":"C14*'Heart Pressure Tracker'!I11","v":0}]
[]
[null,null,{"$f":"IF('Heart Pressure Tracker'!L13=\"\",0,1)","v":0},null,{"$f":"C16*'Heart Pressure Tracker'!F13","v":0},{"$f":"C16*'Heart Pressure Tracker'!I13","v":0}]
[null,null,{"$f":"IF('Heart Pressure Tracker'!L14=\"\",0,1)","v":0},null,{"$f":"C17*'Heart Pressure Tracker'!F14","v":0},{"$f":"C17*'Heart Pressure Tracker'!I14","v":0}]
[]
[null,null,{"$f":"IF('Heart Pressure Tracker'!L16=\"\",0,1)","v":0},null,{"$f":"C19*'Heart Pressure Tracker'!F16","v":0},{"$f":"C19*'Heart Pressure Tracker'!I16","v":0}]
[null,null,{"$f":"IF('Heart Pressure Tracker'!L17=\"\",0,1)","v":0},null,{"$f":"C20*'Heart Pressure Tracker'!F17","v":0},{"$f":"C20*'Heart Pressure Tracker'!I17","v":0}]
[]
[null,null,{"$f":"IF('Heart Pressure Tracker'!L19=\"\",0,1)","v":0},null,{"$f":"C22*'Heart Pressure Tracker'!F19","v":0},{"$f":"C22*'Heart Pressure Tracker'!I19","v":0}]
[null,null,{"$f":"IF('Heart Pressure Tracker'!L20=\"\",0,1)","v":0},null,{"$f":"C23*'Heart Pressure Tracker'!F20","v":0},{"$f":"C23*'Heart Pressure Tracker'!I20","v":0}]
[]
[null,null,{"$f":"IF('Heart Pressure Tracker'!L22=\"\",0,1)","v":0},null,{"$f":"C25*'Heart Pressure Tracker'!F22","v":0},{"$f":"C25*'Heart Pressure Tracker'!I22","v":0}]
[null,null,{"$f":"IF('Heart Pressure Tracker'!L23=\"\",0,1)","v":0},null,{"$f":"C26*'Heart Pressure Tracker'!F23","v":0},{"$f":"C26*'Heart Pressure Tracker'!I23","v":0}]
[]
[null,null,{"$f":"IF('Heart Pressure Tracker'!L25=\"\",0,1)","v":0},null,{"$f":"C28*'Heart Pressure Tracker'!F25","v":0},{"$f":"C28*'Heart Pressure Tracker'!I25","v":0}]
[null,null,{"$f":"IF('Heart Pressure Tracker'!L26=\"\",0,1)","v":0},null,{"$f":"C29*'Heart Pressure Tracker'!F26","v":0},{"$f":"C29*'Heart Pressure Tracker'!I26","v":0}]

{"sheet":"PSW_Sheet","index":3,"n_rows":11,"n_cols":6,"rows_kept":11,"hidden":true}
[{"$cut":{"chars":18038,"head":"%3c%3fxml+version%3d%221.0%22+encoding%3d%22utf-16%22%3f%3e%0d%0a%3cPageInputCells+xmlns%3axsi%3d%22http%3a%2f%2fwww.w3.org%2f2001%2fXMLSchema-instance%22+xmlns%3axsd%3d%22http%3a%2f%2fwww.w3.org%2f2001%2fXMLSchema%22%3e%0d%0a++%3cInputCells+InputPrefix%3d%22PSWInput_%22+ListPrefix%3d%22PSWList_%22+CellCount%3d%2229%22%3e%0d%0a++++%3cCells%3e%0d%0a++++++%3cAddress%3e%3d'Heart+Pressure+Tracker'!%24C%245%3c%2fAddress%3e%0d%0a++++++%3cListItemsAddress+%2f%3e%0d%0a++++++%3cNameIndex%3e0%3c%2fNameIndex%3e%0d%0a++++++%3cIsHidingEnabled%3efalse%3c%2fIsHidingEnabled%3e%0d%0a++++++%3cIsDisablingEnabled%3efalse%3c%2fIsDisablingEnabled%3e%0d%0a++++++%3cRequiresValidation%3efalse%3c%2fRequiresValidation%3e%0d%0a++++++%3cIsRequired%3efalse%3c%2fIsRequired%3e%0d%0a++++++%3cType%3eCalendar%3c%2fType%3e%0d%0a++++++%3cDefaultValue+%2f%3e%0d%0a++++++%3cValueType+%2f%3e%0d%0a++++%3c%2fCells%3e%0d%0a++++%3cCells%3e%0d%0a++++++%3cAddress%3e%3d'Heart+Pressure+Tracker'!%24F%247%3c%2fAddress%3e%0d%0a++++++%3cListItemsAddress+%2f%3e%0d%0a++++++%3cNameIndex%3e1%3c%2fNameIndex%3e%0d%0a++++++%3cIsHidingEnabled%3efalse%3c%2fIsHidingEnabled%3e%0d%0a++++++%3cIsDisablingEnabled%3efalse%3c%2fIsDisablingEnabled%3e%0d%0a++++++%3cRequiresValidation%3efalse%3c%2fRequiresValidation%3e%0d%0a++++++%3cIsRequired%3efalse%3c%2fIsRequired%3e%0d%0a++++++%3cType%3eText+Box%3c%2fType%3e%0d%0a++++++%3cDefaultValue%3e0%3c%2fDefaultValue%3e%0d%0a++++++%3cValueType%3eSystem.Double%3c%2fValueType%3e%0d%0a++++%3c%2fCells%3e%0d%0a++++%3cCells%3e%0d%0a++++++%3cAddress%3e%3d'Heart+Pressure+Tracker'!%24I%247%3c%2fAddress%3e%0d%0a++++++%3cListItemsAddress+%2f%3e%0d%0a++++++%3cNameIndex%3e2%3c%2fNameIndex%3e%0d%0a++++++%3cIsHidingEnabled%3efalse%3c%2fIsHidingEnabled%3e%0d%0a++++++%3cIsDisablingEnabled%3efalse%3c%2fIsDisablingEnabled%3e%0d%0a++++++%3cRequiresValidation%3efalse%3c%2fRequiresValidation%3e%0d%0a++++++%3cIsRequired%3efalse%3c%2fIsRequired%3e%0d%0a++++++%3cType%3eText+Box%3c%2fType%3e%0d%0a++++++%3cDefaultValue%3e0%3c%2fDefaultValue%3e%0d%0a++++++%3cValueType%3eSystem.Double%3c%2fValueType%3e%0d%0a++++%3c%2fCells%3e%0d%0a++++%3cCells%3e%0d%0a++++++%3cAddress%3e%3d'Heart+Pressure+Tracker'!%24F%248%3c%2fAddress%3e%0d%0a++++++%3cListItemsAddress+%2f%3e%0d%0a++++++%3cNameIndex%3e3%3c%2fNameIndex%3e%0d%0a++++++%3cIsHidingEnabled%3efalse%3c%2fIsHidingEnabled%3e%0d%0a++++++%3cIsDisablingEnabled%3efalse%3c%2fIsDisablingEnabled%3e%0d%0a++++++%3cRequiresValidation%3efalse%3c%2fRequiresValidation%3e%0d%0a++++++%3cIsRequired%3efalse%3c%2fIsRequired%3e%0d%0a++++++%3cType%3eText+Box%3c%2fType%3e%0d%0a++++++%3cDefaultValue%3e0%3c%2fDefaultValue%3e%0d%0a++++++%3cValueType%3eSystem.Double%3c%2fValueType%3e%0d%0a++++%3c%2fCells%3e%0d%0a++++%3cCells%3e%0d%0a++++++%3cAddress%3e%3d'Heart+Pressure+Tracker'!%24I%248%3c%2fAddress%3e%0d%0a++++++%3cListItemsAddress+%2f%3e%0d%0a++++++%3cNameIndex%3e4%3c%2fNameIndex%3e%0d%0a++++++%3cIsHidingEnabled%3efalse%3c%2fIsHidingEnabled%3e%0d%0a++++++%3cIsDisablingEnabled%3efalse%3c%2fIsDisablingEnabled%3e%0d%0a++++++%3cRequiresValidation%3efalse%3c%2fRequiresValidation%3e%0d%0a++++++%3cIsRequired%3efalse%3c%2fIsRequired%3e%0d%0a++++++%3cType%3eText+Box%3c%2fType%3e%0d%0a++++++%3cDefaultValue%3e0%3c%2fDefaultValue%3e%0d%0a++++++%3cValueType%3eSystem.Double%3c%2fValueType%3e%0d%0a++++%3c%2fCells%3e%0d%0a++++%3cCells%3e%0d%0a++++++%3cAddress%3e%3d'Heart+Pressure+Tracker'!%24F%2410%3c%2fAddress%3e%0d%0a++++++%3cListItemsAddress+%2f%3e%0d%0a++++++%3cNameIndex%3e5%3c%2fNameIndex%3e%0d%0a++++++%3cIsHidingEnabled%3efalse%3c%2fIsHidingEnabled%3e%0d%0a++++++%3cIsDisablingEnabled%3efalse%3c%2fIsDisablingEnabled%3e%0d%0a++++++%3cRequiresValidation%3efalse%3c%2fRequiresValidation%3e%0d%0a++++++%3cIsRequired%3efalse%3c%2fIsRequired%3e%0d%0a++++++%3cType%3eText+Box%3c%2fType%3e%0d%0a++++++%3cDefaultValue%3e0%3c%2fDefaultValue%3e%0d%0a++++++%3cValueType%3eSystem.Double%3c%2fValueType%3e%0d%0a++++%3c%2fCells%3e%0d%0a++++%3cCells%3e%0d%0a++++++%3cAddress%3e%3d'Heart+Pressure+Tracker'!%24I%2410%3c%2fAddress%3e%0d%0a++++++%3cListItemsAddress+%2f%3e%0d%0a++++++%3cNameIndex%3"}}]
[{"$cut":{"chars":32761,"head":" %3c%3fxml+version%3d%221.0%22+encoding%3d%22utf-16%22%3f%3e%0d%0a%3cTables+xmlns%3axsi%3d%22http%3a%2f%2fwww.w3.org%2f2001%2fXMLSchema-instance%22+xmlns%3axsd%3d%22http%3a%2f%2fwww.w3.org%2f2001%2fXMLSchema%22+InputPrefix%3d%22PSWInput_%22%3e%0d%0a++%3cTable+Name%3d%22PSWOutput_0%22+ColumnWidths%3d%2224.75-60.75-24.75-24.75-24.75-24.75-24.75-24.75-24.75-24.75-24.75-24.75-24.75-14.25-24.75-24.75-24.75-24.75-24.75-24.75-24.75-24.75-24.75-24.75-24.75-24.75-24.75-24.75-24.75%22+RowCount%3d%2230%22+Width%3d%22743.25%22+InputPrefix%3d%22PSWInput_%22%3e%0d%0a++++%3cTR%3e%0d%0a++++++%3cTD+Style%3d%22Class252%22+Merge%3d%22False%22+RowSpan%3d%22%22+ColSpan%3d%22%22+Format%3d%22General%22+Width%3d%2224.75%22+Text%3d%22%22+Height%3d%2215%22+Align%3d%22Left%22+CellHasFormula%3d%22False%22+FontName%3d%22Calibri%22+WrapText%3d%22False%22+FontSize%3d%2211%22+X%3d%221%22+Y%3d%221%22+%2f%3e%0d%0a++++++%3cTD+Style%3d%22Class252%22+Merge%3d%22False%22+RowSpan%3d%22%22+ColSpan%3d%22%22+Format%3d%22General%22+Width%3d%2260.75%22+Text%3d%22%22+Height%3d%2215%22+Align%3d%22Left%22+CellHasFormula%3d%22False%22+FontName%3d%22Calibri%22+WrapText%3d%22False%22+FontSize%3d%2211%22+X%3d%222%22+Y%3d%221%22+%2f%3e%0d%0a++++++%3cTD+Style%3d%22Class252%22+Merge%3d%22False%22+RowSpan%3d%22%22+ColSpan%3d%22%22+Format%3d%22General%22+Width%3d%2224.75%22+Text%3d%22%22+Height%3d%2215%22+Align%3d%22Left%22+CellHasFormula%3d%22False%22+FontName%3d%22Calibri%22+WrapText%3d%22False%22+FontSize%3d%2211%22+X%3d%223%22+Y%3d%221%22+%2f%3e%0d%0a++++++%3cTD+Style%3d%22Class252%22+Merge%3d%22False%22+RowSpan%3d%22%22+ColSpan%3d%22%22+Format%3d%22General%22+Width%3d%2224.75%22+Text%3d%22%22+Height%3d%2215%22+Align%3d%22Left%22+CellHasFormula%3d%22False%22+FontName%3d%22Calibri%22+WrapText%3d%22False%22+FontSize%3d%2211%22+X%3d%224%22+Y%3d%221%22+%2f%3e%0d%0a++++++%3cTD+Style%3d%22Class252%22+Merge%3d%22False%22+RowSpan%3d%22%22+ColSpan%3d%22%22+Format%3d%22General%22+Width%3d%2224.75%22+Text%3d%22%22+Height%3d%2215%22+Align%3d%22Left%22+CellHasFormula%3d%22False%22+FontName%3d%22Calibri%22+WrapText%3d%22False%22+FontSize%3d%2211%22+X%3d%225%22+Y%3d%221%22+%2f%3e%0d%0a++++++%3cTD+Style%3d%22Class252%22+Merge%3d%22False%22+RowSpan%3d%22%22+ColSpan%3d%22%22+Format%3d%22General%22+Width%3d%2224.75%22+Text%3d%22%22+Height%3d%2215%22+Align%3d%22Left%22+CellHasFormula%3d%22False%22+FontName%3d%22Calibri%22+WrapText%3d%22False%22+FontSize%3d%2211%22+X%3d%226%22+Y%3d%221%22+%2f%3e%0d%0a++++++%3cTD+Style%3d%22Class252%22+Merge%3d%22False%22+RowSpan%3d%22%22+ColSpan%3d%22%22+Format%3d%22General%22+Width%3d%2224.75%22+Text%3d%22%22+Height%3d%2215%22+Align%3d%22Left%22+CellHasFormula%3d%22False%22+FontName%3d%22Calibri%22+WrapText%3d%22False%22+FontSize%3d%2211%22+X%3d%227%22+Y%3d%221%22+%2f%3e%0d%0a++++++%3cTD+Style%3d%22Class252%22+Merge%3d%22False%22+RowSpan%3d%22%22+ColSpan%3d%22%22+Format%3d%22General%22+Width%3d%2224.75%22+Text%3d%22%22+Height%3d%2215%22+Align%3d%22Left%22+CellHasFormula%3d%22False%22+FontName%3d%22Calibri%22+WrapText%3d%22False%22+FontSize%3d%2211%22+X%3d%228%22+Y%3d%221%22+%2f%3e%0d%0a++++++%3cTD+Style%3d%22Class252%22+Merge%3d%22False%22+RowSpan%3d%22%22+ColSpan%3d%22%22+Format%3d%22General%22+Width%3d%2224.75%22+Text%3d%22%22+Height%3d%2215%22+Align%3d%22Left%22+CellHasFormula%3d%22False%22+FontName%3d%22Calibri%22+WrapText%3d%22False%22+FontSize%3d%2211%22+X%3d%229%22+Y%3d%221%22+%2f%3e%0d%0a++++++%3cTD+Style%3d%22Class252%22+Merge%3d%22False%22+RowSpan%3d%22%22+ColSpan%3d%22%22+Format%3d%22General%22+Width%3d%2224.75%22+Text%3d%22%22+Height%3d%2215%22+Align%3d%22Left%22+CellHasFormula%3d%22False%22+FontName%3d%22Calibri%22+WrapText%3d%22False%22+FontSize%3d%2211%22+X%3d%2210%22+Y%3d%221%22+%2f%3e%0d%0a++++++%3cTD+Style%3d%22Class252%22+Merge%3d%22False%22+RowSpan%3d%22%22+ColSpan%3d%22%22+Format%3d%22General%22+Width%3d%2224.75%22+Text%3d%22%22+Height%3d%2215%22+Align%3d%22Left%22+CellHasFormula%3d%22False%22+FontName%3d%22Calibri%22+WrapText%3d%22False%22+FontSize%3d%2211%22+X%3d%2211%22+Y%3d%221%22+%2f%3e%0d%0a++++++%3cTD+Style%3d%22Class252%22+Merge%"}},{"$cut":{"chars":32761,"head":" 22False%22+FontName%3d%22Calibri%22+WrapText%3d%22False%22+FontSize%3d%2211%22+X%3d%2217%22+Y%3d%226%22+%2f%3e%0d%0a++++++%3cTD+Style%3d%22Class268%22+Merge%3d%22True%22+RowSpan%3d%22%22+ColSpan%3d%223%22+Format%3d%22General%22+Width%3d%2274.25%22+Text%3d%22%22+Height%3d%226.75%22+Align%3d%22Center%22+CellHasFormula%3d%22False%22+FontName%3d%22Calibri%22+WrapText%3d%22False%22+FontSize%3d%2211%22+X%3d%2220%22+Y%3d%226%22+%2f%3e%0d%0a++++++%3cTD+Style%3d%22Class268%22+Merge%3d%22True%22+RowSpan%3d%22%22+ColSpan%3d%223%22+Format%3d%22General%22+Width%3d%2274.25%22+Text%3d%22%22+Height%3d%226.75%22+Align%3d%22Center%22+CellHasFormula%3d%22False%22+FontName%3d%22Calibri%22+WrapText%3d%22False%22+FontSize%3d%2211%22+X%3d%2223%22+Y%3d%226%22+%2f%3e%0d%0a++++++%3cTD+Style%3d%22Class268%22+Merge%3d%22True%22+RowSpan%3d%22%22+ColSpan%3d%223%22+Format%3d%22General%22+Width%3d%2274.25%22+Text%3d%22%22+Height%3d%226.75%22+Align%3d%22Center%22+CellHasFormula%3d%22False%22+FontName%3d%22Calibri%22+WrapText%3d%22False%22+FontSize%3d%2211%22+X%3d%2226%22+Y%3d%226%22+%2f%3e%0d%0a++++++%3cTD+Style%3d%22Class252%22+Merge%3d%22False%22+RowSpan%3d%22%22+ColSpan%3d%22%22+Format%3d%22General%22+Width%3d%2224.75%22+Text%3d%22%22+Height%3d%226.75%22+Align%3d%22Left%22+CellHasFormula%3d%22False%22+FontName%3d%22Calibri%22+WrapText%3d%22False%22+FontSize%3d%2211%22+X%3d%2229%22+Y%3d%226%22+%2f%3e%0d%0a++++%3c%2fTR%3e%0d%0a++++%3cTR%3e%0d%0a++++++%3cTD+Style%3d%22Class257%22+Merge%3d%22False%22+RowSpan%3d%22%22+ColSpan%3d%22%22+Format%3d%22General%22+Width%3d%2224.75%22+Text%3d%22%22+Height%3d%2215%22+Align%3d%22Left%22+CellHasFormula%3d%22False%22+FontName%3d%22Calibri%22+WrapText%3d%22False%22+FontSize%3d%2211%22+X%3d%221%22+Y%3d%227%22+%2f%3e%0d%0a++++++%3cTD+Style%3d%22Class269%22+Merge%3d%22True%22+RowSpan%3d%222%22+ColSpan%3d%22%22+Format%3d%22General%22+Width%3d%2260.75%22+Text%3d%22Monday%22+Height%3d%2230.75%22+Align%3d%22Center%22+CellHasFormula%3d%22False%22+FontName%3d%22Calibri%22+WrapText%3d%22False%22+FontSize%3d%2211%22+X%3d%222%22+Y%3d%227%22+%2f%3e%0d%0a++++++%3cTD+Style%3d%22Class270%22+Merge%3d%22True%22+RowSpan%3d%22%22+ColSpan%3d%222%22+Format%3d%22General%22+Width%3d%2249.5%22+Text%3d%22Morning%22+Height%3d%2215%22+Align%3d%22Center%22+CellHasFormula%3d%22False%22+FontName%3d%22Calibri%22+WrapText%3d%22False%22+FontSize%3d%2211%22+X%3d%223%22+Y%3d%227%22+%2f%3e%0d%0a++++++%3cTD+Style%3d%22Class271%22+Merge%3d%22True%22+RowSpan%3d%22%22+ColSpan%3d%223%22+Format%3d%220%22+Width%3d%2274.25%22+Text%3d%22%22+Height%3d%2215%22+Align%3d%22Center%22+CellHasFormula%3d%22False%22+FontName%3d%22Calibri%22+WrapText%3d%22False%22+FontSize%3d%2211%22+X%3d%225%22+Y%3d%227%22%3e%0d%0a++++++++%3cInputCell%3e%0d%0a++++++++++%3cAddress%3e%3d'Heart+Pressure+Tracker'!%24F%247%3c%2fAddress%3e%0d%0a++++++++++%3cListItemsAddress+%2f%3e%0d%0a++++++++++%3cNameIndex%3e1%3c%2fNameIndex%3e%0d%0a++++++++++%3cIsHidingEnabled%3efalse%3c%2fIsHidingEnabled%3e%0d%0a++++++++++%3cIsDisablingEnabled%3efalse%3c%2fIsDisablingEnabled%3e%0d%0a++++++++++%3cRequiresValidation%3efalse%3c%2fRequiresValidation%3e%0d%0a++++++++++%3cIsRequired%3efalse%3c%2fIsRequired%3e%0d%0a++++++++++%3cType%3eText+Box%3c%2fType%3e%0d%0a++++++++++%3cDefaultValue%3e0%3c%2fDefaultValue%3e%0d%0a++++++++++%3cValueType%3eSystem.Double%3c%2fValueType%3e%0d%0a++++++++%3c%2fInputCell%3e%0d%0a++++++%3c%2fTD%3e%0d%0a++++++%3cTD+Style%3d%22Class272%22+Merge%3d%22True%22+RowSpan%3d%22%22+ColSpan%3d%223%22+Format%3d%220%22+Width%3d%2274.25%22+Text%3d%22%22+Height%3d%2215%22+Align%3d%22Center%22+CellHasFormula%3d%22False%22+FontName%3d%22Calibri%22+WrapText%3d%22False%22+FontSize%3d%2211%22+X%3d%228%22+Y%3d%227%22%3e%0d%0a++++++++%3cInputCell%3e%0d%0a++++++++++%3cAddress%3e%3d'Heart+Pressure+Tracker'!%24I%247%3c%2fAddress%3e%0d%0a++++++++++%3cListItemsAddress+%2f%3e%0d%0a++++++++++%3cNameIndex%3e2%3c%2fNameIndex%3e%0d%0a++++++++++%3cIsHidingEnabled%3efalse%3c%2fIsHidingEnabled%3e%0d%0a++++++++++%3cIsDisablingEnabled%3efalse%3c%2fIsDisablingEnabled%3e%0d%0a++++++++++%3cRequiresValidation%3efalse%3c%2fRe"}},{"$cut":{"chars":32761,"head":" 22Left%22+CellHasFormula%3d%22False%22+FontName%3d%22Calibri%22+WrapText%3d%22False%22+FontSize%3d%2211%22+X%3d%222%22+Y%3d%2212%22+%2f%3e%0d%0a++++++%3cTD+Style%3d%22Class267%22+Merge%3d%22False%22+RowSpan%3d%22%22+ColSpan%3d%22%22+Format%3d%22General%22+Width%3d%2224.75%22+Text%3d%22%22+Height%3d%226.75%22+Align%3d%22Center%22+CellHasFormula%3d%22False%22+FontName%3d%22Calibri%22+WrapText%3d%22False%22+FontSize%3d%2211%22+X%3d%223%22+Y%3d%2212%22+%2f%3e%0d%0a++++++%3cTD+Style%3d%22Class267%22+Merge%3d%22False%22+RowSpan%3d%22%22+ColSpan%3d%22%22+Format%3d%22General%22+Width%3d%2224.75%22+Text%3d%22%22+Height%3d%226.75%22+Align%3d%22Center%22+CellHasFormula%3d%22False%22+FontName%3d%22Calibri%22+WrapText%3d%22False%22+FontSize%3d%2211%22+X%3d%224%22+Y%3d%2212%22+%2f%3e%0d%0a++++++%3cTD+Style%3d%22Class282%22+Merge%3d%22False%22+RowSpan%3d%22%22+ColSpan%3d%22%22+Format%3d%220%22+Width%3d%2224.75%22+Text%3d%22%22+Height%3d%226.75%22+Align%3d%22Center%22+CellHasFormula%3d%22False%22+FontName%3d%22Calibri%22+WrapText%3d%22False%22+FontSize%3d%2211%22+X%3d%225%22+Y%3d%2212%22+%2f%3e%0d%0a++++++%3cTD+Style%3d%22Class282%22+Merge%3d%22False%22+RowSpan%3d%22%22+ColSpan%3d%22%22+Format%3d%220%22+Width%3d%2224.75%22+Text%3d%22%22+Height%3d%226.75%22+Align%3d%22Center%22+CellHasFormula%3d%22False%22+FontName%3d%22Calibri%22+WrapText%3d%22False%22+FontSize%3d%2211%22+X%3d%226%22+Y%3d%2212%22+%2f%3e%0d%0a++++++%3cTD+Style%3d%22Class282%22+Merge%3d%22False%22+RowSpan%3d%22%22+ColSpan%3d%22%22+Format%3d%220%22+Width%3d%2224.75%22+Text%3d%22%22+Height%3d%226.75%22+Align%3d%22Center%22+CellHasFormula%3d%22False%22+FontName%3d%22Calibri%22+WrapText%3d%22False%22+FontSize%3d%2211%22+X%3d%227%22+Y%3d%2212%22+%2f%3e%0d%0a++++++%3cTD+Style%3d%22Class282%22+Merge%3d%22False%22+RowSpan%3d%22%22+ColSpan%3d%22%22+Format%3d%220%22+Width%3d%2224.75%22+Text%3d%22%22+Height%3d%226.75%22+Align%3d%22Center%22+CellHasFormula%3d%22False%22+FontName%3d%22Calibri%22+WrapText%3d%22False%22+FontSize%3d%2211%22+X%3d%228%22+Y%3d%2212%22+%2f%3e%0d%0a++++++%3cTD+Style%3d%22Class282%22+Merge%3d%22False%22+RowSpan%3d%22%22+ColSpan%3d%22%22+Format%3d%220%22+Width%3d%2224.75%22+Text%3d%22%22+Height%3d%226.75%22+Align%3d%22Center%22+CellHasFormula%3d%22False%22+FontName%3d%22Calibri%22+WrapText%3d%22False%22+FontSize%3d%2211%22+X%3d%229%22+Y%3d%2212%22+%2f%3e%0d%0a++++++%3cTD+Style%3d%22Class282%22+Merge%3d%22False%22+RowSpan%3d%22%22+ColSpan%3d%22%22+Format%3d%220%22+Width%3d%2224.75%22+Text%3d%22%22+Height%3d%226.75%22+Align%3d%22Center%22+CellHasFormula%3d%22False%22+FontName%3d%22Calibri%22+WrapText%3d%22False%22+FontSize%3d%2211%22+X%3d%2210%22+Y%3d%2212%22+%2f%3e%0d%0a++++++%3cTD+Style%3d%22Class282%22+Merge%3d%22False%22+RowSpan%3d%22%22+ColSpan%3d%22%22+Format%3d%220%22+Width%3d%2224.75%22+Text%3d%22%22+Height%3d%226.75%22+Align%3d%22Center%22+CellHasFormula%3d%22False%22+FontName%3d%22Calibri%22+WrapText%3d%22False%22+FontSize%3d%2211%22+X%3d%2211%22+Y%3d%2212%22+%2f%3e%0d%0a++++++%3cTD+Style%3d%22Class282%22+Merge%3d%22False%22+RowSpan%3d%22%22+ColSpan%3d%22%22+Format%3d%220%22+Width%3d%2224.75%22+Text%3d%22%22+Height%3d%226.75%22+Align%3d%22Center%22+CellHasFormula%3d%22False%22+FontName%3d%22Calibri%22+WrapText%3d%22False%22+FontSize%3d%2211%22+X%3d%2212%22+Y%3d%2212%22+%2f%3e%0d%0a++++++%3cTD+Style%3d%22Class282%22+Merge%3d%22False%22+RowSpan%3d%22%22+ColSpan%3d%22%22+Format%3d%220%22+Width%3d%2224.75%22+Text%3d%22%22+Height%3d%226.75%22+Align%3d%22Center%22+CellHasFormula%3d%22False%22+FontName%3d%22Calibri%22+WrapText%3d%22False%22+FontSize%3d%2211%22+X%3d%2213%22+Y%3d%2212%22+%2f%3e%0d%0a++++++%3cTD+Style%3d%22Class283%22+Merge%3d%22False%22+RowSpan%3d%22%22+ColSpan%3d%22%22+Format%3d%22General%22+Width%3d%2214.25%22+Text%3d%22%22+Height%3d%226.75%22+Align%3d%22Left%22+CellHasFormula%3d%22False%22+FontName%3d%22Calibri%22+WrapText%3d%22False%22+FontSize%3d%2211%22+X%3d%2214%22+Y%3d%2212%22+%2f%3e%0d%0a++++++%3cTD+Style%3d%22Class283%22+Merge%3d%22False%22+RowSpan%3d%22%22+ColSpan%3d%22%22+Format%3d%22General%22+Width%3d%2224.75%22+Text%3d%22%22+Heig"}},{"$cut":{"chars":32761,"head":" 15%22+Y%3d%2216%22+%2f%3e%0d%0a++++++%3cTD+Style%3d%22Class273%22+Merge%3d%22True%22+RowSpan%3d%22%22+ColSpan%3d%223%22+Format%3d%22General%22+Width%3d%2274.25%22+Text%3d%22%22+Height%3d%2215%22+Align%3d%22Center%22+CellHasFormula%3d%22True%22+FontName%3d%22Calibri%22+WrapText%3d%22False%22+FontSize%3d%2211%22+X%3d%2217%22+Y%3d%2216%22+%2f%3e%0d%0a++++++%3cTD+Style%3d%22Class273%22+Merge%3d%22True%22+RowSpan%3d%22%22+ColSpan%3d%223%22+Format%3d%22General%22+Width%3d%2274.25%22+Text%3d%22%22+Height%3d%2215%22+Align%3d%22Center%22+CellHasFormula%3d%22True%22+FontName%3d%22Calibri%22+WrapText%3d%22False%22+FontSize%3d%2211%22+X%3d%2220%22+Y%3d%2216%22+%2f%3e%0d%0a++++++%3cTD+Style%3d%22Class273%22+Merge%3d%22True%22+RowSpan%3d%22%22+ColSpan%3d%223%22+Format%3d%22General%22+Width%3d%2274.25%22+Text%3d%22%22+Height%3d%2215%22+Align%3d%22Center%22+CellHasFormula%3d%22True%22+FontName%3d%22Calibri%22+WrapText%3d%22False%22+FontSize%3d%2211%22+X%3d%2223%22+Y%3d%2216%22+%2f%3e%0d%0a++++++%3cTD+Style%3d%22Class273%22+Merge%3d%22True%22+RowSpan%3d%22%22+ColSpan%3d%223%22+Format%3d%22General%22+Width%3d%2274.25%22+Text%3d%22%22+Height%3d%2215%22+Align%3d%22Center%22+CellHasFormula%3d%22True%22+FontName%3d%22Calibri%22+WrapText%3d%22False%22+FontSize%3d%2211%22+X%3d%2226%22+Y%3d%2216%22+%2f%3e%0d%0a++++++%3cTD+Style%3d%22Class261%22+Merge%3d%22False%22+RowSpan%3d%22%22+ColSpan%3d%22%22+Format%3d%22General%22+Width%3d%2224.75%22+Text%3d%22%22+Height%3d%2215%22+Align%3d%22Left%22+CellHasFormula%3d%22False%22+FontName%3d%22Calibri%22+WrapText%3d%22False%22+FontSize%3d%2211%22+X%3d%2229%22+Y%3d%2216%22+%2f%3e%0d%0a++++%3c%2fTR%3e%0d%0a++++%3cTR%3e%0d%0a++++++%3cTD+Style%3d%22Class257%22+Merge%3d%22False%22+RowSpan%3d%22%22+ColSpan%3d%22%22+Format%3d%22General%22+Width%3d%2224.75%22+Text%3d%22%22+Height%3d%2215.75%22+Align%3d%22Left%22+CellHasFormula%3d%22False%22+FontName%3d%22Calibri%22+WrapText%3d%22False%22+FontSize%3d%2211%22+X%3d%221%22+Y%3d%2217%22+%2f%3e%0d%0a++++++%3cTD+Style%3d%22Class276%22+Merge%3d%22True%22+RowSpan%3d%22%22+ColSpan%3d%222%22+Format%3d%22General%22+Width%3d%2249.5%22+Text%3d%22Evening%22+Height%3d%2215.75%22+Align%3d%22Center%22+CellHasFormula%3d%22False%22+FontName%3d%22Calibri%22+WrapText%3d%22False%22+FontSize%3d%2211%22+X%3d%223%22+Y%3d%2217%22+%2f%3e%0d%0a++++++%3cTD+Style%3d%22Class277%22+Merge%3d%22True%22+RowSpan%3d%22%22+ColSpan%3d%223%22+Format%3d%220%22+Width%3d%2274.25%22+Text%3d%22%22+Height%3d%2215.75%22+Align%3d%22Center%22+CellHasFormula%3d%22False%22+FontName%3d%22Calibri%22+WrapText%3d%22False%22+FontSize%3d%2211%22+X%3d%225%22+Y%3d%2217%22%3e%0d%0a++++++++%3cInputCell%3e%0d%0a++++++++++%3cAddress%3e%3d'Heart+Pressure+Tracker'!%24F%2417%3c%2fAddress%3e%0d%0a++++++++++%3cListItemsAddress+%2f%3e%0d%0a++++++++++%3cNameIndex%3e15%3c%2fNameIndex%3e%0d%0a++++++++++%3cIsHidingEnabled%3efalse%3c%2fIsHidingEnabled%3e%0d%0a++++++++++%3cIsDisablingEnabled%3efalse%3c%2fIsDisablingEnabled%3e%0d%0a++++++++++%3cRequiresValidation%3efalse%3c%2fRequiresValidation%3e%0d%0a++++++++++%3cIsRequired%3efalse%3c%2fIsRequired%3e%0d%0a++++++++++%3cType%3eText+Box%3c%2fType%3e%0d%0a++++++++++%3cDefaultValue%3e0%3c%2fDefaultValue%3e%0d%0a++++++++++%3cValueType%3eSystem.Double%3c%2fValueType%3e%0d%0a++++++++%3c%2fInputCell%3e%0d%0a++++++%3c%2fTD%3e%0d%0a++++++%3cTD+Style%3d%22Class278%22+Merge%3d%22True%22+RowSpan%3d%22%22+ColSpan%3d%223%22+Format%3d%220%22+Width%3d%2274.25%22+Text%3d%22%22+Height%3d%2215.75%22+Align%3d%22Center%22+CellHasFormula%3d%22False%22+FontName%3d%22Calibri%22+WrapText%3d%22False%22+FontSize%3d%2211%22+X%3d%228%22+Y%3d%2217%22%3e%0d%0a++++++++%3cInputCell%3e%0d%0a++++++++++%3cAddress%3e%3d'Heart+Pressure+Tracker'!%24I%2417%3c%2fAddress%3e%0d%0a++++++++++%3cListItemsAddress+%2f%3e%0d%0a++++++++++%3cNameIndex%3e16%3c%2fNameIndex%3e%0d%0a++++++++++%3cIsHidingEnabled%3efalse%3c%2fIsHidingEnabled%3e%0d%0a++++++++++%3cIsDisablingEnabled%3efalse%3c%2fIsDisablingEnabled%3e%0d%0a++++++++++%3cRequiresValidation%3efalse%3c%2fRequiresValidation%3e%0d%0a++++++++++%3cIsRequired%3efalse%3c%2fIsRequired%3e%0d%0"}},{"$cut":{"chars":32761,"head":" 2+Merge%3d%22False%22+RowSpan%3d%22%22+ColSpan%3d%22%22+Format%3d%22General%22+Width%3d%2224.75%22+Text%3d%22%22+Height%3d%226.75%22+Align%3d%22Left%22+CellHasFormula%3d%22False%22+FontName%3d%22Calibri%22+WrapText%3d%22False%22+FontSize%3d%2211%22+X%3d%2219%22+Y%3d%2221%22+%2f%3e%0d%0a++++++%3cTD+Style%3d%22Class283%22+Merge%3d%22False%22+RowSpan%3d%22%22+ColSpan%3d%22%22+Format%3d%22General%22+Width%3d%2224.75%22+Text%3d%22%22+Height%3d%226.75%22+Align%3d%22Left%22+CellHasFormula%3d%22False%22+FontName%3d%22Calibri%22+WrapText%3d%22False%22+FontSize%3d%2211%22+X%3d%2220%22+Y%3d%2221%22+%2f%3e%0d%0a++++++%3cTD+Style%3d%22Class283%22+Merge%3d%22False%22+RowSpan%3d%22%22+ColSpan%3d%22%22+Format%3d%22General%22+Width%3d%2224.75%22+Text%3d%22%22+Height%3d%226.75%22+Align%3d%22Left%22+CellHasFormula%3d%22False%22+FontName%3d%22Calibri%22+WrapText%3d%22False%22+FontSize%3d%2211%22+X%3d%2221%22+Y%3d%2221%22+%2f%3e%0d%0a++++++%3cTD+Style%3d%22Class283%22+Merge%3d%22False%22+RowSpan%3d%22%22+ColSpan%3d%22%22+Format%3d%22General%22+Width%3d%2224.75%22+Text%3d%22%22+Height%3d%226.75%22+Align%3d%22Left%22+CellHasFormula%3d%22False%22+FontName%3d%22Calibri%22+WrapText%3d%22False%22+FontSize%3d%2211%22+X%3d%2222%22+Y%3d%2221%22+%2f%3e%0d%0a++++++%3cTD+Style%3d%22Class283%22+Merge%3d%22False%22+RowSpan%3d%22%22+ColSpan%3d%22%22+Format%3d%22General%22+Width%3d%2224.75%22+Text%3d%22%22+Height%3d%226.75%22+Align%3d%22Left%22+CellHasFormula%3d%22False%22+FontName%3d%22Calibri%22+WrapText%3d%22False%22+FontSize%3d%2211%22+X%3d%2223%22+Y%3d%2221%22+%2f%3e%0d%0a++++++%3cTD+Style%3d%22Class283%22+Merge%3d%22False%22+RowSpan%3d%22%22+ColSpan%3d%22%22+Format%3d%22General%22+Width%3d%2224.75%22+Text%3d%22%22+Height%3d%226.75%22+Align%3d%22Left%22+CellHasFormula%3d%22False%22+FontName%3d%22Calibri%22+WrapText%3d%22False%22+FontSize%3d%2211%22+X%3d%2224%22+Y%3d%2221%22+%2f%3e%0d%0a++++++%3cTD+Style%3d%22Class283%22+Merge%3d%22False%22+RowSpan%3d%22%22+ColSpan%3d%22%22+Format%3d%22General%22+Width%3d%2224.75%22+Text%3d%22%22+Height%3d%226.75%22+Align%3d%22Left%22+CellHasFormula%3d%22False%22+FontName%3d%22Calibri%22+WrapText%3d%22False%22+FontSize%3d%2211%22+X%3d%2225%22+Y%3d%2221%22+%2f%3e%0d%0a++++++%3cTD+Style%3d%22Class283%22+Merge%3d%22False%22+RowSpan%3d%22%22+ColSpan%3d%22%22+Format%3d%22General%22+Width%3d%2224.75%22+Text%3d%22%22+Height%3d%226.75%22+Align%3d%22Left%22+CellHasFormula%3d%22False%22+FontName%3d%22Calibri%22+WrapText%3d%22False%22+FontSize%3d%2211%22+X%3d%2226%22+Y%3d%2221%22+%2f%3e%0d%0a++++++%3cTD+Style%3d%22Class283%22+Merge%3d%22False%22+RowSpan%3d%22%22+ColSpan%3d%22%22+Format%3d%22General%22+Width%3d%2224.75%22+Text%3d%22%22+Height%3d%226.75%22+Align%3d%22Left%22+CellHasFormula%3d%22False%22+FontName%3d%22Calibri%22+WrapText%3d%22False%22+FontSize%3d%2211%22+X%3d%2227%22+Y%3d%2221%22+%2f%3e%0d%0a++++++%3cTD+Style%3d%22Class283%22+Merge%3d%22False%22+RowSpan%3d%22%22+ColSpan%3d%22%22+Format%3d%22General%22+Width%3d%2224.75%22+Text%3d%22%22+Height%3d%226.75%22+Align%3d%22Left%22+CellHasFormula%3d%22False%22+FontName%3d%22Calibri%22+WrapText%3d%22False%22+FontSize%3d%2211%22+X%3d%2228%22+Y%3d%2221%22+%2f%3e%0d%0a++++++%3cTD+Style%3d%22Class252%22+Merge%3d%22False%22+RowSpan%3d%22%22+ColSpan%3d%22%22+Format%3d%22General%22+Width%3d%2224.75%22+Text%3d%22%22+Height%3d%226.75%22+Align%3d%22Left%22+CellHasFormula%3d%22False%22+FontName%3d%22Calibri%22+WrapText%3d%22False%22+FontSize%3d%2211%22+X%3d%2229%22+Y%3d%2221%22+%2f%3e%0d%0a++++%3c%2fTR%3e%0d%0a++++%3cTR%3e%0d%0a++++++%3cTD+Style%3d%22Class257%22+Merge%3d%22False%22+RowSpan%3d%22%22+ColSpan%3d%22%22+Format%3d%22General%22+Width%3d%2224.75%22+Text%3d%22%22+Height%3d%2215%22+Align%3d%22Left%22+CellHasFormula%3d%22False%22+FontName%3d%22Calibri%22+WrapText%3d%22False%22+FontSize%3d%2211%22+X%3d%221%22+Y%3d%2222%22+%2f%3e%0d%0a++++++%3cTD+Style%3d%22Class269%22+Merge%3d%22True%22+RowSpan%3d%222%22+ColSpan%3d%22%22+Format%3d%22General%22+Width%3d%2260.75%22+Text%3d%22Saturday%22+Height%3d%2230.75%22+Align%3d%22Center%22+CellHasFormula%3d%22False%22+FontName%3d%22Calibri%22+Wr"}},{"$cut":{"chars":25122,"head":" 2+%2f%3e%0d%0a++++++%3cTD+Style%3d%22Class279%22+Merge%3d%22True%22+RowSpan%3d%22%22+ColSpan%3d%223%22+Format%3d%22General%22+Width%3d%2274.25%22+Text%3d%22%22+Height%3d%2215.75%22+Align%3d%22Center%22+CellHasFormula%3d%22True%22+FontName%3d%22Calibri%22+WrapText%3d%22False%22+FontSize%3d%2211%22+X%3d%2217%22+Y%3d%2226%22+%2f%3e%0d%0a++++++%3cTD+Style%3d%22Class279%22+Merge%3d%22True%22+RowSpan%3d%22%22+ColSpan%3d%223%22+Format%3d%22General%22+Width%3d%2274.25%22+Text%3d%22%22+Height%3d%2215.75%22+Align%3d%22Center%22+CellHasFormula%3d%22True%22+FontName%3d%22Calibri%22+WrapText%3d%22False%22+FontSize%3d%2211%22+X%3d%2220%22+Y%3d%2226%22+%2f%3e%0d%0a++++++%3cTD+Style%3d%22Class279%22+Merge%3d%22True%22+RowSpan%3d%22%22+ColSpan%3d%223%22+Format%3d%22General%22+Width%3d%2274.25%22+Text%3d%22%22+Height%3d%2215.75%22+Align%3d%22Center%22+CellHasFormula%3d%22True%22+FontName%3d%22Calibri%22+WrapText%3d%22False%22+FontSize%3d%2211%22+X%3d%2223%22+Y%3d%2226%22+%2f%3e%0d%0a++++++%3cTD+Style%3d%22Class279%22+Merge%3d%22True%22+RowSpan%3d%22%22+ColSpan%3d%223%22+Format%3d%22General%22+Width%3d%2274.25%22+Text%3d%22%22+Height%3d%2215.75%22+Align%3d%22Center%22+CellHasFormula%3d%22True%22+FontName%3d%22Calibri%22+WrapText%3d%22False%22+FontSize%3d%2211%22+X%3d%2226%22+Y%3d%2226%22+%2f%3e%0d%0a++++++%3cTD+Style%3d%22Class261%22+Merge%3d%22False%22+RowSpan%3d%22%22+ColSpan%3d%22%22+Format%3d%22General%22+Width%3d%2224.75%22+Text%3d%22%22+Height%3d%2215.75%22+Align%3d%22Left%22+CellHasFormula%3d%22False%22+FontName%3d%22Calibri%22+WrapText%3d%22False%22+FontSize%3d%2211%22+X%3d%2229%22+Y%3d%2226%22+%2f%3e%0d%0a++++%3c%2fTR%3e%0d%0a++++%3cTR%3e%0d%0a++++++%3cTD+Style%3d%22Class252%22+Merge%3d%22False%22+RowSpan%3d%22%22+ColSpan%3d%22%22+Format%3d%22General%22+Width%3d%2224.75%22+Text%3d%22%22+Height%3d%226.75%22+Align%3d%22Left%22+CellHasFormula%3d%22False%22+FontName%3d%22Calibri%22+WrapText%3d%22False%22+FontSize%3d%2211%22+X%3d%221%22+Y%3d%2227%22+%2f%3e%0d%0a++++++%3cTD+Style%3d%22Class266%22+Merge%3d%22False%22+RowSpan%3d%22%22+ColSpan%3d%22%22+Format%3d%22General%22+Width%3d%2260.75%22+Text%3d%22%22+Height%3d%226.75%22+Align%3d%22Left%22+CellHasFormula%3d%22False%22+FontName%3d%22Calibri%22+WrapText%3d%22False%22+FontSize%3d%2211%22+X%3d%222%22+Y%3d%2227%22+%2f%3e%0d%0a++++++%3cTD+Style%3d%22Class266%22+Merge%3d%22False%22+RowSpan%3d%22%22+ColSpan%3d%22%22+Format%3d%22General%22+Width%3d%2224.75%22+Text%3d%22%22+Height%3d%226.75%22+Align%3d%22Left%22+CellHasFormula%3d%22False%22+FontName%3d%22Calibri%22+WrapText%3d%22False%22+FontSize%3d%2211%22+X%3d%223%22+Y%3d%2227%22+%2f%3e%0d%0a++++++%3cTD+Style%3d%22Class266%22+Merge%3d%22False%22+RowSpan%3d%22%22+ColSpan%3d%22%22+Format%3d%22General%22+Width%3d%2224.75%22+Text%3d%22%22+Height%3d%226.75%22+Align%3d%22Left%22+CellHasFormula%3d%22False%22+FontName%3d%22Calibri%22+WrapText%3d%22False%22+FontSize%3d%2211%22+X%3d%224%22+Y%3d%2227%22+%2f%3e%0d%0a++++++%3cTD+Style%3d%22Class266%22+Merge%3d%22False%22+RowSpan%3d%22%22+ColSpan%3d%22%22+Format%3d%22General%22+Width%3d%2224.75%22+Text%3d%22%22+Height%3d%226.75%22+Align%3d%22Left%22+CellHasFormula%3d%22False%22+FontName%3d%22Calibri%22+WrapText%3d%22False%22+FontSize%3d%2211%22+X%3d%225%22+Y%3d%2227%22+%2f%3e%0d%0a++++++%3cTD+Style%3d%22Class266%22+Merge%3d%22False%22+RowSpan%3d%22%22+ColSpan%3d%22%22+Format%3d%22General%22+Width%3d%2224.75%22+Text%3d%22%22+Height%3d%226.75%22+Align%3d%22Left%22+CellHasFormula%3d%22False%22+FontName%3d%22Calibri%22+WrapText%3d%22False%22+FontSize%3d%2211%22+X%3d%226%22+Y%3d%2227%22+%2f%3e%0d%0a++++++%3cTD+Style%3d%22Class266%22+Merge%3d%22False%22+RowSpan%3d%22%22+ColSpan%3d%22%22+Format%3d%22General%22+Width%3d%2224.75%22+Text%3d%22%22+Height%3d%226.75%22+Align%3d%22Left%22+CellHasFormula%3d%22False%22+FontName%3d%22Calibri%22+WrapText%3d%22False%22+FontSize%3d%2211%22+X%3d%227%22+Y%3d%2227%22+%2f%3e%0d%0a++++++%3cTD+Style%3d%22Class266%22+Merge%3d%22False%22+RowSpan%3d%22%22+ColSpan%3d%22%22+Format%3d%22General%22+Width%3d%2224.75%22+Text%3d%22%22+Height%3d%226.75%22+Align%3d%22Left%22+CellHasFormula%"}}]
["%3c%3fxml+version%3d%221.0%22+encoding%3d%22utf-16%22%3f%3e%0d%0a%3cPageLayouts+xmlns%3axsi%3d%22http%3a%2f%2fwww.w3.org%2f2001%2fXMLSchema-instance%22+xmlns%3axsd%3d%22http%3a%2f%2fwww.w3.org%2f2001%2fXMLSchema%22+IsTabsVisible%3d%22true%22+InitialPageIndex%3d%220%22%3e%0d%0a++%3cPageLayout+Index%3d%220%22+IsPageHidingEnabled%3d%22false%22+Order%3d%220%22+FileName%3d%221.+Heart+Pressure+Tr%22+IsAjaxEnabled%3d%22false%22+Recipient%3d%22Enter+e-mail+address+here.%22+Location%3d%22Bottom%22+Alignment%3d%22Center%22+AutoResponseEmail%3d%22False%22+NotificationEmail%3d%22False%22+PageForwarding%3d%22False%22+PageForwardingCustomPage%3d%22False%22+PageForwardingIsExternalURL%3d%22False%22+PageForwardingExternalURL%3d%22None%22%3e%0d%0a++++%3cControls%3e%0d%0a++++++%3cPageControl+Enabled%3d%22true%22+Type%3d%22Calculate%22+Order%3d%220%22+CellLink%3d%22%3d'Heart+Pressure+Tracker'!%24AB%242%22+Name%3d%22Analyze%22+%2f%3e%0d%0a++++++%3cPageControl+Enabled%3d%22false%22+Type%3d%22Reset%22+Order%3d%221%22+CellLink%3d%22DEFAULT%22+Name%3d%22Reset%22+%2f%3e%0d%0a++++++%3cPageControl+Enabled%3d%22false%22+Type%3d%22Send+Results%22+Order%3d%222%22+CellLink%3d%22DEFAULT%22+Name%3d%22Submit%22+%2f%3e%0d%0a++++++%3cPageControl+Enabled%3d%22true%22+Type%3d%22Save%22+Order%3d%223%22+CellLink%3d%22%3d'Heart+Pressure+Tracker'!%24AB%243%22+Name%3d%22Save%22+%2f%3e%0d%0a++++++%3cPageControl+Enabled%3d%22false%22+Type%3d%22Back%22+Order%3d%225%22+CellLink%3d%22DEFAULT%22+Name%3d%22Back%22+%2f%3e%0d%0a++++++%3cPageControl+Enabled%3d%22false%22+Type%3d%22Next%22+Order%3d%224%22+CellLink%3d%22DEFAULT%22+Name%3d%22Next%22+%2f%3e%0d%0a++++%3c%2fControls%3e%0d%0a++%3c%2fPageLayout%3e%0d%0a++%3cApplicationName%3eWeekly+Heart+Pressure+Tracker+(Online)%3c%2fApplicationName%3e%0d%0a%3c%2fPageLayouts%3e"]
["\n.Class252{font-family: Calibri; font-size:11pt; color:Black;border: 0.5pt  None  Black ;background-color:White; text-align:left;vertical-align:bottom;}\n.Class253{font-family: Bell MT; font-size:14pt; color:#17375D;font-weight: bold;border: 0.5pt  None  Black ;background-color:White; text-align:left;vertical-align:bottom;}\n.Class254{font-family: Bell MT; font-size:14pt; color:#17375D;font-weight: bold;border: 0.5pt  None  Black ;background-color:White; text-align:center;vertical-align:bottom;}\n.Class255{font-family: Calibri; font-size:11pt; color:Black;border-bottom-style: Solid ;border-top-width: 0.5pt ;border-left-width: 0.5pt ;border-right-width: 0.5pt ;border-bottom-width: 1.0pt ;border-top-color: Black ;border-left-color: Black ;border-right-color: Black ;border-bottom-color: #974807 ;background-color:White; text-align:left;vertical-align:bottom;}\n.Class256{font-family: Bell MT; font-size:14pt; color:#17375D;font-weight: bold;border-bottom-style: Solid ;border-top-width: 0.5pt ;border-left-width: 0.5pt ;border-right-width: 0.5pt ;border-bottom-width: 1.0pt ;border-top-color: Black ;border-left-color: Black ;border-right-color: Black ;border-bottom-color: #974807 ;background-color:White; text-align:center;vertical-align:bottom;}\n.Class257{font-family: Calibri; font-size:11pt; color:Black;border-right-style: Solid ;border-top-width: 0.5pt ;border-left-width: 0.5pt ;border-right-width: 1.0pt ;border-bottom-width: 0.5pt ;border-top-color: Black ;border-left-color: Black ;border-right-color: #974807 ;border-bottom-color: Black ;background-color:White; text-align:left;vertical-align:bottom;}\n.Class258{font-family: Calibri; font-size:11pt; color:Black;font-weight: bold;border-top-style: Solid ;border-left-style: Solid ;border-bottom-style: Solid ;border-top-width: 1.0pt ;border-left-width: 1.0pt ;border-right-width: 0.5pt ;border-bottom-width: 0.5pt ;border-top-color: #974807 ;border-left-color: #974807 ;border-right-color: Black ;border-bottom-color: #974807 ;background-color:White; text-align:center;vertical-align:bottom;}\n.Class259{font-family: Calibri; font-size:11pt; color:Black;border-left-style: Solid ;border-right-style: Solid ;border-top-width: 0.5pt ;border-left-width: 1.0pt ;border-right-width: 1.0pt ;border-bottom-width: 0.5pt ;border-top-color: Black ;border-left-color: #974807 ;border-right-color: #974807 ;border-bottom-color: Black ;background-color:White; text-align:left;vertical-align:bottom;}\n.Class260{font-family: Calibri; font-size:11pt; color:White;font-weight: bold;border-top-style: Solid ;border-left-style: Solid ;border-top-width: 1.0pt ;border-left-width: 1.0pt ;border-right-width: 0.5pt ;border-bottom-width: 0.5pt ;border-top-color: #974807 ;border-left-color: #974807 ;border-right-color: Black ;border-bottom-color: Black ;background-color:#A50021; text-align:center;vertical-align:bottom;}\n.Class261{font-family: Calibri; font-size:11pt; color:Black;border-left-style: Solid ;border-top-width: 0.5pt ;border-left-width: 1.0pt ;border-right-width: 0.5pt ;border-bottom-width: 0.5pt ;border-top-color: Black ;border-left-color: #974807 ;border-right-color: Black ;border-bottom-color: Black ;background-color:White; text-align:left;vertical-align:bottom;}\n.Class262{font-family: Calibri; font-size:11pt; color:Black;border-top-style: Solid ;border-left-style: Solid ;border-bottom-style: Solid ;border-top-width: 0.5pt ;border-left-width: 1.0pt ;border-right-width: 0.5pt ;border-bottom-width: 1.0pt ;border-top-color: #974807 ;border-left-color: #974807 ;border-right-color: Black ;border-bottom-color: #974807 ;background-color:White; text-align:center;vertical-align:bottom;}\n.Class263{font-family: Calibri; font-size:11pt; color:White;font-weight: bold;border-left-style: Solid ;border-bottom-style: Solid ;border-top-width: 0.5pt ;border-left-width: 1.0pt ;border-right-width: 0.5pt ;border-bottom-width: 1.0pt ;border-top-color: Black ;border-left-color: #974807 ;border-right-color: Black ;border-bottom-color: #974807 ;background-color:#A50021; text-align:center;vertical-align:bottom;}\n.Class264{font-family: Calibri; font-size:11pt; color:White;font-weight: bold;border-bottom-style: Solid ;border-top-width: 0.5pt ;border-left-width: 0.5pt ;border-right-width: 0.5pt ;border-bottom-width: 1.0pt ;border-top-color: Black ;border-left-color: Black ;border-right-color: Black ;border-bottom-color: #974807 ;background-color:#A50021; text-align:center;vertical-align:bottom;}\n.Class265{font-family: Calibri; font-size:11pt; color:Black;font-weight: bold;border-left-style: Solid ;border-top-width: 0.5pt ;border-left-width: 1.0pt ;border-right-width: 0.5pt ;border-bottom-width: 0.5pt ;border-top-color: Black ;border-left-color: #974807 ;border-right-color: Black ;border-bottom-color: Black ;background-color:White; text-align:left;vertical-align:bottom;}\n.Class266{font-family: Calibri; font-size:11pt; color:Black;border-top-style: Solid ;border-bottom-style: Solid ;border-top-width: 1.0pt ;border-left-width: 0.5pt ;border-right-width: 0.5pt ;border-bottom-width: 1.0pt ;border-top-color: #974807 ;border-left-color: Black ;border-right-color: Black ;border-bottom-color: #974807 ;background-color:White; text-align:left;vertical-align:bottom;}\n.Class267{font-family: Calibri; font-size:11pt; color:Black;font-weight: bold;border-top-style: Solid ;border-bottom-style: Solid ;border-top-width: 1.0pt ;border-left-width: 0.5pt ;border-right-width: 0.5pt ;border-bottom-width: 1.0pt ;border-top-color: #974807 ;border-left-color: Black ;border-right-color: Black ;border-bottom-color: #974807 ;background-color:White; text-align:center;vertical-align:bottom;}\n.Class268{font-family: Calibri; font-size:11pt; color:Black;border-top-style: Solid ;border-bottom-style: Solid ;border-top-width: 1.0pt ;border-left-width: 0.5pt ;border-right-width: 0.5pt ;border-bottom-width: 1.0pt ;border-top-color: #974807 ;border-left-color: Black ;border-right-color: Black ;border-bottom-color: #974807 ;background-color:White; text-align:center;vertical-align:bottom;}\n.Class269{font-family: Calibri; font-size:11pt; color:White;font-weight: bold;border-top-style: Solid ;border-left-style: Solid ;border-top-width: 1.0pt ;border-left-width: 1.0pt ;border-right-width: 0.5pt ;border-bottom-width: 0.5pt ;border-top-color: #974807 ;border-left-color: #974807 ;border-right-color: Black ;border-bottom-color: Black ;background-color:#376091; text-align:center;vertical-align:middle;}\n.Class270{font-family: Calibri; font-size:11pt; color:White;font-weight: bold;border-top-style: Solid ;border-top-width: 1.0pt ;border-left-width: 0.5pt ;border-right-width: 0.5pt ;border-bottom-width: 0.5pt ;border-top-color: #974807 ;border-left-color: Black ;border-right-color: Black ;border-bottom-color: Black ;background-color:#376091; text-align:center;vertical-align:bottom;}\n.Class271{font-family: Calibri; font-size:11pt; color:Black;border-top-style: Solid ;border-left-style: Solid ;border-bottom-style: Solid ;border-top-width: 1.0pt ;border-left-width: 1.0pt ;border-right-width: 0.5pt ;border-bottom-width: 0.5pt ;border-top-color: #974807 ;border-left-color: #974807 ;border-right-color: Black ;border-bottom-color: #974807 ;background-color:#EEECE1; text-align:center;vertical-align:middle;}\n.Class272{font-family: Calibri; font-size:11pt; color:Black;border-top-style: Solid ;border-bottom-style: Solid ;border-top-width: 1.0pt ;border-left-width: 0.5pt ;border-right-width: 0.5pt ;border-bottom-width: 0.5pt ;border-top-color: #974807 ;border-left-color: Black ;border-right-color: Black ;border-bottom-color: #974807 ;background-color:#EEECE1; text-align:center;vertical-align:middle;}\n.Class273{font-family: Calibri; font-size:11pt; color:Black;border-top-style: Solid ;border-bottom-style: Solid ;border-top-width: 1.0pt ;border-left-width: 0.5pt ;border-right-width: 0.5pt ;border-bottom-width: 0.5pt ;border-top-color: #974807 ;border-left-color: Black ;border-right-color: Black ;border-bottom-color: #974807 ;background-color:White; text-align:center;vertical-align:middle;}\n.Class274{font-family: Calibri; font-size:11pt; color:Black;border-top-style: Solid ;border-left-style: Solid ;border-right-style: Solid ;border-top-width: 1.0pt ;border-left-width: 1.0pt ;border-right-width: 1.0pt ;border-bottom-width: 0.5pt ;border-top-color: #974807 ;border-left-color: #974807 ;border-right-color: #974807 ;border-bottom-color: Black ;background-color:White; text-align:left;vertical-align:middle;}\n.Class275{font-family: Calibri; font-size:11pt; color:Black;border-top-style: Solid ;border-left-style: Solid ;border-bottom-style: Solid ;border-top-width: 1.0pt ;border-left-width: 1.0pt ;border-right-width: 0.5pt ;border-bottom-width: 0.5pt ;border-top-color: #974807 ;border-left-color: #974807 ;border-right-color: Black ;border-bottom-color: #974807 ;background-color:White; text-align:center;vertical-align:middle;}\n.Class276{font-family: Calibri; font-size:11pt; color:White;font-weight: bold;border-bottom-style: Solid ;border-top-width: 0.5pt ;border-left-width: 0.5pt ;border-right-width: 0.5pt ;border-bottom-width: 1.0pt ;border-top-color: Black ;border-left-color: Black ;border-right-color: Black ;border-bottom-color: #974807 ;background-color:#376091; text-align:center;vertical-align:bottom;}\n.Class277{font-family: Calibri; font-size:11pt; color:Black;border-top-style: Solid ;border-left-style: Solid ;border-bottom-style: Solid ;border-top-width: 0.5pt ;border-left-width: 1.0pt ;border-right-width: 0.5pt ;border-bottom-width: 1.0pt ;border-top-color: #974807 ;border-left-color: #974807 ;border-right-color: Black ;border-bottom-color: #974807 ;background-color:#EEECE1; text-align:center;vertical-align:middle;}\n.Class278{font-family: Calibri; font-size:11pt; color:Black;border-top-style: Solid ;border-bottom-style: Solid ;border-top-width: 0.5pt ;border-left-width: 0.5pt ;border-right-width: 0.5pt ;border-bottom-width: 1.0pt ;border-top-color: #974807 ;border-left-color: Black ;border-right-color: Black ;border-bottom-color: #974807 ;background-color:#EEECE1; text-align:center;vertical-align:middle;}\n.Class279{font-family: Calibri; font-size:11pt; color:Black;border-top-style: Solid ;border-bottom-style: Solid ;border-top-width: 0.5pt ;border-left-width: 0.5pt ;border-right-width: 0.5pt ;border-bottom-width: 1.0pt ;border-top-color: #974807 ;border-left-color: Black ;border-right-color: Black ;border-bottom-color: #974807 ;background-color:White; text-align:center;vertical-align:middle;}\n.Class280{font-family: Calibri; font-size:11pt; color:Black;border-left-style: Solid ;border-right-style: Solid ;border-bottom-style: Solid ;border-top-width: 0.5pt ;border-left-width: 1.0pt ;border-right-width: 1.0pt ;border-bottom-width: 1.0pt ;border-top-color: Black ;border-left-color: #974807 ;border-right-color: #974807 ;border-bottom-color: #974807 ;background-color:White; text-align:left;vertical-align:middle;}\n.Class281{font-family: Calibri; font-size:11pt; color:Black;border-top-style: Solid ;border-left-style: Solid ;border-bottom-style: Solid ;border-top-width: 0.5pt ;border-left-width: 1.0pt ;border-right-width: 0.5pt ;border-bottom-width: 1.0pt ;border-top-color: #974807 ;border-left-color: #974807 ;border-right-color: Black ;border-bottom-color: #974807 ;background-color:White; text-align:center;vertical-align:middle;}\n.Class282{font-family: Calibri; font-size:11pt; color:Black;border-top-style: Solid ;border-bottom-style: Solid ;border-top-width: 1.0pt ;border-left-width: 0.5pt ;border-right-width: 0.5pt ;border-bottom-width: 1.0pt ;border-top-color: #974807 ;border-left-color: Black ;border-right-color: Black ;border-bottom-color: #974807 ;background-color:White; text-align:center;vertical-align:middle;}\n.Class283{font-family: Calibri; font-size:11pt; color:Black;border-top-style: Solid ;border-bottom-style: Solid ;border-top-width: 1.0pt ;border-left-width: 0.5pt ;border-right-width: 0.5pt ;border-bottom-width: 1.0pt ;border-top-color: #974807 ;border-left-color: Black ;border-right-color: Black ;border-bottom-color: #974807 ;background-color:White; text-align:left;vertical-align:middle;}\n.Class284{font-family: Calibri; font-size:11pt; color:White;font-weight: bold;border-top-style: Solid ;border-left-style: Solid ;border-top-width: 1.0pt ;border-left-width: 1.0pt ;border-right-width: 0.5pt ;border-bottom-width: 0.5pt ;border-top-color: #974807 ;border-left-color: #974807 ;border-right-color: Black ;border-bottom-color: Black ;background-color:#A50021; text-align:center;vertical-align:middle;}\n.Class285{font-family: Calibri; font-size:11pt; color:Black;border-top-style: Solid ;border-left-style: Solid ;border-top-width: 1.0pt ;border-left-width: 1.0pt ;border-right-width: 0.5pt ;border-bottom-width: 0.5pt ;border-top-color: #974807 ;border-left-color: #974807 ;border-right-color: Black ;border-bottom-color: Black ;background-color:White; text-align:center;vertical-align:middle;}\n.Class286{font-family: Calibri; font-size:11pt; color:Black;border-top-style: Solid ;border-top-width: 1.0pt ;border-left-width: 0.5pt ;border-right-width: 0.5pt ;border-bottom-width: 0.5pt ;border-top-color: #974807 ;border-left-color: Black ;border-right-color: Black ;border-bottom-color: Black ;background-color:White; text-align:center;vertical-align:middle;}\n.Class287{font-family: Calibri; font-size:11pt; color:Black;border-top-style: Solid ;border-left-style: Solid ;border-right-style: Solid ;border-top-width: 1.0pt ;border-left-width: 1.0pt ;border-right-width: 1.0pt ;border-bottom-width: 0.5pt ;border-top-color: #974807 ;border-left-color: #974807 ;border-right-color: #974807 ;border-bottom-color: Black ;background-color:White; text-align:left;vertical-align:bottom;}\n.Class288{font-family: Calibri; font-size:11pt; color:Black;border-left-style: Solid ;border-right-style: Solid ;border-bottom-style: Solid ;border-top-width: 0.5pt ;border-left-width: 1.0pt ;border-right-width: 1.0pt ;border-bottom-width: 1.0pt ;border-top-color: Black ;border-left-color: #974807 ;border-right-color: #974807 ;border-bottom-color: #974807 ;background-color:White; text-align:left;vertical-align:bottom;}\n.Class289{font-family: Calibri; font-size:11pt; color:Black;border-top-style: Solid ;border-top-width: 1.0pt ;border-left-width: 0.5pt ;border-right-width: 0.5pt ;border-bottom-width: 0.5pt ;border-top-color: #974807 ;border-left-color: Black ;border-right-color: Black ;border-bottom-color: Black ;background-color:White; text-align:left;vertical-align:bottom;}"]
["tr-TR"]
["2.0.0.0"]
[]
["UEsFBgAAAAAAAAAAAAAAAAAAAAAAAA%3d%3d"]
[]
[]
["%3c%3fxml+version%3d%221.0%22+encoding%3d%22utf-16%22%3f%3e%0d%0a%3cSavingCells+xmlns%3axsi%3d%22http%3a%2f%2fwww.w3.org%2f2001%2fXMLSchema-instance%22+xmlns%3axsd%3d%22http%3a%2f%2fwww.w3.org%2f2001%2fXMLSchema%22+CellCount%3d%2232%22+SavingCellPrefix%3d%22PSWSavingCell_%22%3e%0d%0a++%3cCells%3e%0d%0a++++%3cNameIndex%3e0%3c%2fNameIndex%3e%0d%0a++++%3cLabel%3eStarting_Date%3c%2fLabel%3e%0d%0a++++%3cValueType%3eText%3c%2fValueType%3e%0d%0a++++%3cMultiRecordIndex+%2f%3e%0d%0a++%3c%2fCells%3e%0d%0a++%3cCells%3e%0d%0a++++%3cNameIndex%3e1%3c%2fNameIndex%3e%0d%0a++++%3cLabel%3eAvg_Sys%3c%2fLabel%3e%0d%0a++++%3cValueType%3eNumeric%3c%2fValueType%3e%0d%0a++++%3cMultiRecordIndex+%2f%3e%0d%0a++%3c%2fCells%3e%0d%0a++%3cCells%3e%0d%0a++++%3cNameIndex%3e2%3c%2fNameIndex%3e%0d%0a++++%3cLabel%3eAvg_Dia%3c%2fLabel%3e%0d%0a++++%3cValueType%3eNumeric%3c%2fValueType%3e%0d%0a++++%3cMultiRecordIndex+%2f%3e%0d%0a++%3c%2fCells%3e%0d%0a++%3cCells%3e%0d%0a++++%3cNameIndex%3e3%3c%2fNameIndex%3e%0d%0a++++%3cLabel%3eAvg_Pulse%3c%2fLabel%3e%0d%0a++++%3cValueType%3eNumeric%3c%2fValueType%3e%0d%0a++++%3cMultiRecordIndex+%2f%3e%0d%0a++%3c%2fCells%3e%0d%0a++%3cCells%3e%0d%0a++++%3cNameIndex%3e4%3c%2fNameIndex%3e%0d%0a++++%3cLabel%3eS_11%3c%2fLabel%3e%0d%0a++++%3cValueType%3eText%3c%2fValueType%3e%0d%0a++++%3cMultiRecordIndex+%2f%3e%0d%0a++%3c%2fCells%3e%0d%0a++%3cCells%3e%0d%0a++++%3cNameIndex%3e5%3c%2fNameIndex%3e%0d%0a++++%3cLabel%3eD_11%3c%2fLabel%3e%0d%0a++++%3cValueType%3eText%3c%2fValueType%3e%0d%0a++++%3cMultiRecordIndex+%2f%3e%0d%0a++%3c%2fCells%3e%0d%0a++%3cCells%3e%0d%0a++++%3cNameIndex%3e6%3c%2fNameIndex%3e%0d%0a++++%3cLabel%3eS_12%3c%2fLabel%3e%0d%0a++++%3cValueType%3eText%3c%2fValueType%3e%0d%0a++++%3cMultiRecordIndex+%2f%3e%0d%0a++%3c%2fCells%3e%0d%0a++%3cCells%3e%0d%0a++++%3cNameIndex%3e7%3c%2fNameIndex%3e%0d%0a++++%3cLabel%3eD_12%3c%2fLabel%3e%0d%0a++++%3cValueType%3eText%3c%2fValueType%3e%0d%0a++++%3cMultiRecordIndex+%2f%3e%0d%0a++%3c%2fCells%3e%0d%0a++%3cCells%3e%0d%0a++++%3cNameIndex%3e8%3c%2fNameIndex%3e%0d%0a++++%3cLabel%3eS_21%3c%2fLabel%3e%0d%0a++++%3cValueType%3eText%3c%2fValueType%3e%0d%0a++++%3cMultiRecordIndex+%2f%3e%0d%0a++%3c%2fCells%3e%0d%0a++%3cCells%3e%0d%0a++++%3cNameIndex%3e9%3c%2fNameIndex%3e%0d%0a++++%3cLabel%3eD_21%3c%2fLabel%3e%0d%0a++++%3cValueType%3eText%3c%2fValueType%3e%0d%0a++++%3cMultiRecordIndex+%2f%3e%0d%0a++%3c%2fCells%3e%0d%0a++%3cCells%3e%0d%0a++++%3cNameIndex%3e10%3c%2fNameIndex%3e%0d%0a++++%3cLabel%3eS_22%3c%2fLabel%3e%0d%0a++++%3cValueType%3eText%3c%2fValueType%3e%0d%0a++++%3cMultiRecordIndex+%2f%3e%0d%0a++%3c%2fCells%3e%0d%0a++%3cCells%3e%0d%0a++++%3cNameIndex%3e11%3c%2fNameIndex%3e%0d%0a++++%3cLabel%3eD_22%3c%2fLabel%3e%0d%0a++++%3cValueType%3eText%3c%2fValueType%3e%0d%0a++++%3cMultiRecordIndex+%2f%3e%0d%0a++%3c%2fCells%3e%0d%0a++%3cCells%3e%0d%0a++++%3cNameIndex%3e12%3c%2fNameIndex%3e%0d%0a++++%3cLabel%3eS_31%3c%2fLabel%3e%0d%0a++++%3cValueType%3eText%3c%2fValueType%3e%0d%0a++++%3cMultiRecordIndex+%2f%3e%0d%0a++%3c%2fCells%3e%0d%0a++%3cCells%3e%0d%0a++++%3cNameIndex%3e13%3c%2fNameIndex%3e%0d%0a++++%3cLabel%3eD_31%3c%2fLabel%3e%0d%0a++++%3cValueType%3eText%3c%2fValueType%3e%0d%0a++++%3cMultiRecordIndex+%2f%3e%0d%0a++%3c%2fCells%3e%0d%0a++%3cCells%3e%0d%0a++++%3cNameIndex%3e14%3c%2fNameIndex%3e%0d%0a++++%3cLabel%3eS_32%3c%2fLabel%3e%0d%0a++++%3cValueType%3eText%3c%2fValueType%3e%0d%0a++++%3cMultiRecordIndex+%2f%3e%0d%0a++%3c%2fCells%3e%0d%0a++%3cCells%3e%0d%0a++++%3cNameIndex%3e15%3c%2fNameIndex%3e%0d%0a++++%3cLabel%3eD_32%3c%2fLabel%3e%0d%0a++++%3cValueType%3eText%3c%2fValueType%3e%0d%0a++++%3cMultiRecordIndex+%2f%3e%0d%0a++%3c%2fCells%3e%0d%0a++%3cCells%3e%0d%0a++++%3cNameIndex%3e16%3c%2fNameIndex%3e%0d%0a++++%3cLabel%3eS_41%3c%2fLabel%3e%0d%0a++++%3cValueType%3eText%3c%2fValueType%3e%0d%0a++++%3cMultiRecordIndex+%2f%3e%0d%0a++%3c%2fCells%3e%0d%0a++%3cCells%3e%0d%0a++++%3cNameIndex%3e17%3c%2fNameIndex%3e%0d%0a++++%3cLabel%3eD_41%3c%2fLabel%3e%0d%0a++++%3cValueType%3eText%3c%2fValueType%3e%0d%0a++++%3cMultiRecordIndex+%2f%3e%0d%0a++%3c%2fCells%3e%0d%0a++%3cCells%3e%0d%0a++++%3cNameIndex%3e18%3c%2fNameIndex%3e%0d%0a++++%3cLabel%3eS_42%3c%2fLabel%3e%0d%0a++++%3cValueType%3eText%3c%2fValueType%3e%0d%0a++++%3cMultiRecordIndex+%2f%3e%0d%0a++%3c%2fCells%3e%0d%0a++%3cCells%3e%0d%0a++++%3cNameIndex%3e19%3c%2fNameIndex%3e%0d%0a++++%3cLabel%3eD_42%3c%2fLabel%3e%0d%0a++++%3cValueType%3eText%3c%2fValueType%3e%0d%0a++++%3cMultiRecordIndex+%2f%3e%0d%0a++%3c%2fCells%3e%0d%0a++%3cCells%3e%0d%0a++++%3cNameIndex%3e20%3c%2fNameIndex%3e%0d%0a++++%3cLabel%3eS_51%3c%2fLabel%3e%0d%0a++++%3cValueType%3eText%3c%2fValueType%3e%0d%0a++++%3cMultiRecordIndex+%2f%3e%0d%0a++%3c%2fCells%3e%0d%0a++%3cCells%3e%0d%0a++++%3cNameIndex%3e21%3c%2fNameIndex%3e%0d%0a++++%3cLabel%3eD_51%3c%2fLabel%3e%0d%0a++++%3cValueType%3eText%3c%2fValueType%3e%0d%0a++++%3cMultiRecordIndex+%2f%3e%0d%0a++%3c%2fCells%3e%0d%0a++%3cCells%3e%0d%0a++++%3cNameIndex%3e22%3c%2fNameIndex%3e%0d%0a++++%3cLabel%3eS_52%3c%2fLabel%3e%0d%0a++++%3cValueType%3eText%3c%2fValueType%3e%0d%0a++++%3cMultiRecordIndex+%2f%3e%0d%0a++%3c%2fCells%3e%0d%0a++%3cCells%3e%0d%0a++++%3cNameIndex%3e23%3c%2fNameIndex%3e%0d%0a++++%3cLabel%3eD_52%3c%2fLabel%3e%0d%0a++++%3cValueType%3eText%3c%2fValueType%3e%0d%0a++++%3cMultiRecordIndex+%2f%3e%0d%0a++%3c%2fCells%3e%0d%0a++%3cCells%3e%0d%0a++++%3cNameIndex%3e24%3c%2fNameIndex%3e%0d%0a++++%3cLabel%3eS_61%3c%2fLabel%3e%0d%0a++++%3cValueType%3eText%3c%2fValueType%3e%0d%0a++++%3cMultiRecordIndex+%2f%3e%0d%0a++%3c%2fCells%3e%0d%0a++%3cCells%3e%0d%0a++++%3cNameIndex%3e25%3c%2fNameIndex%3e%0d%0a++++%3cLabel%3eD_61%3c%2fLabel%3e%0d%0a++++%3cValueType%3eText%3c%2fValueType%3e%0d%0a++++%3cMultiRecordIndex+%2f%3e%0d%0a++%3c%2fCells%3e%0d%0a++%3cCells%3e%0d%0a++++%3cNameIndex%3e26%3c%2fNameIndex%3e%0d%0a++++%3cLabel%3eS_62%3c%2fLabel%3e%0d%0a++++%3cValueType%3eText%3c%2fValueType%3e%0d%0a++++%3cMultiRecordIndex+%2f%3e%0d%0a++%3c%2fCells%3e%0d%0a++%3cCells%3e%0d%0a++++%3cNameIndex%3e27%3c%2fNameIndex%3e%0d%0a++++%3cLabel%3eD_62%3c%2fLabel%3e%0d%0a++++%3cValueType%3eText%3c%2fValueType%3e%0d%0a++++%3cMultiRecordIndex+%2f%3e%0d%0a++%3c%2fCells%3e%0d%0a++%3cCells%3e%0d%0a++++%3cNameIndex%3e28%3c%2fNameIndex%3e%0d%0a++++%3cLabel%3eS_71%3c%2fLabel%3e%0d%0a++++%3cValueType%3eText%3c%2fValueType%3e%0d%0a++++%3cMultiRecordIndex+%2f%3e%0d%0a++%3c%2fCells%3e%0d%0a++%3cCells%3e%0d%0a++++%3cNameIndex%3e29%3c%2fNameIndex%3e%0d%0a++++%3cLabel%3eD_71%3c%2fLabel%3e%0d%0a++++%3cValueType%3eText%3c%2fValueType%3e%0d%0a++++%3cMultiRecordIndex+%2f%3e%0d%0a++%3c%2fCells%3e%0d%0a++%3cCells%3e%0d%0a++++%3cNameIndex%3e30%3c%2fNameIndex%3e%0d%0a++++%3cLabel%3eS_72%3c%2fLabel%3e%0d%0a++++%3cValueType%3eText%3c%2fValueType%3e%0d%0a++++%3cMultiRecordIndex+%2f%3e%0d%0a++%3c%2fCells%3e%0d%0a++%3cCells%3e%0d%0a++++%3cNameIndex%3e31%3c%2fNameIndex%3e%0d%0a++++%3cLabel%3eD_72%3c%2fLabel%3e%0d%0a++++%3cValueType%3eText%3c%2fValueType%3e%0d%0a++++%3cMultiRecordIndex+%2f%3e%0d%0a++%3c%2fCells%3e%0d%0a%3c%2fSavingCells%3e"]